{"text_format":"3","workbook":"xlsx","n_sheets":1,"sheets":["ULUNDI-LA-P2-R1"],"not_rendered":{"defined_names":2},"read":"whole","date_system":"1900"}

{"sheet":"ULUNDI-LA-P2-R1","index":0,"n_rows":2063,"n_cols":6,"rows_kept":2063}
["."]
["ITEM NO","DESCRIPTION","UNIT","QUANTITY","RATE","AMOUNT"]
[]
["","SECTION NO.1",{"$nulls":3},""]
[]
["","BILL NO.1",{"$nulls":3},""]
[]
["","PRELIMINARY AND GENERAL",{"$nulls":3},""]
[]
["","NOTES",{"$nulls":3},""]
[]
["","i)\tThe agreement is to be the General Conditions of Contract for Works of Civil Engineering Construction (2010) (Second Edition), published by the S. A. Institution Of Civil Engineering.","",null,null,""]
["","ii) \tThe Preliminaries are to be the Construction and management requirements for works contracts - Part 1: General engineering and construction works (SANS 1921-1: 2004 Edition 1) prepared by Standards South Africa and shall be deemed  to be incorporated herein.","",null,null,""]
["","iii) \tTenderers are referred to the above-mentioned documents for the full intent and meaning of each clause thereof (hereinafter referred to by heading and clause number only) for which such allowance must be made as may be considered necessary.","",null,null,""]
["","iv) \tWhere standard clauses or alternatives are not entirely applicable to this contract such modifications, corrections or supplements as will apply are given under each relevant clause heading.","",null,null,""]
["","v) \tWhere any item is not relevant to this specific contract such item is marked N/A (signifying \"not applicable\").","",null,null,""]
["","vi) \tAdjustment of the preliminaries:  each item priced, is to be allocated to one or more of  the three categories, where \"F\" denotes a fixed amount  (amount not to be varied), \"V\" denotes an amount  variable in proportion to value and \"T\" denotes an  amount in proportion to time.","",null,null,""]
["","vii) \tTime (T) related Preliminaries will only be adjusted for omissions or additions, issued by the Employer, or delays caused by the Employer, for which variation and extension of time has been granted.","",null,null,""]
[]
["","SECTION A:  GENERAL CONDITIONS OF CONTRACT",{"$nulls":3},""]
[]
["1","A1\tGeneral\t(clause 1)  \nF:___________ V:___________ T:____________","Item",1,0,{"$f":"D22*E22","v":0}]
[]
["2","A2 Basis of contract (clause 2) \nF:___________ V:___________ T:____________","Item",1,0,{"$f":"D24*E24","v":0}]
[]
[]
["3","A3 Engineer (clause 3)  \nF:___________ V:___________ T:____________","Item",1,0,{"$f":"D27*E27","v":0}]
[]
["4","A4 Contractors general obligations (clause 4)  F:___________ V:___________ T:____________","Item",1,0,{"$f":"D29*E29","v":0}]
[]
["5","A5 Time and related matters (clause 5) - As referred to in the Contract Data under Special Conditions of Contract. \tThe Contract Period shall be deemed to include all Non-Working Days, Special Non - Working Days and the year-end Builders Annual Industry Holiday Periods  \nF:___________ V:___________ T:____________","Item",1,0,{"$f":"D31*E31","v":0}]
[]
["6","A6 Payment and related matters (clause 6)  \nF:___________ V:___________ T:____________","Item",1,0,{"$f":"D33*E33","v":0}]
[]
["7","A7 Quality and related matters (clause 7)  \nF:___________ V:___________ T:____________","Item",1,0,{"$f":"D35*E35","v":0}]
[]
["8","A8 Risks and related matters (clause 8)  \nF:___________ V:___________ T:____________","Item",1,0,{"$f":"D37*E37","v":0}]
[]
["9","A9 Terminations of contract (clause 9)  \nF:___________ V:___________ T:____________","Item",1,0,{"$f":"D39*E39","v":0}]
[]
["10","A10 Claims and disputes (clause 10)  \nF:___________ V:___________ T:____________","Item",1,0,{"$f":"D41*E41","v":0}]
[]
["","SECTION B: SANS 1921-1:2004 (Edition 1): CONSTRUCTION AND MANAGEMENT REQUIREMENTS FOR WORKS CONTRACTS: PART 1",{"$nulls":3},""]
[]
["","Refer to the SCOPE OF WORK for detail requirements:",""]
[]
["11","B1 Scope (clause 1)  \nF:___________ V:___________ T:____________","Item",1,0,{"$f":"D47*E47","v":0}]
[]
["12","B2 Normative references (clause 2)  \nF:___________ V:___________ T:____________","Item",1,0,{"$f":"D49*E49","v":0}]
[]
["13","B3 Definitions (clause 3)  \nF:___________ V:___________ T:____________","Item",1,0,{"$f":"D51*E51","v":0}]
[]
["14","B4 Requirements for construction and management (clause 4)  \nF:___________ V:___________ T:____________","Item",1,0,{"$f":"D53*E53","v":0}]
[]
[]
["15","B4.1 General (Clause 4.1)  \nF:___________ V:___________ T:____________","Item",1,0,{"$f":"D56*E56","v":0}]
[]
["16","B4.2 Responsibilities for design and construction (clause 4.2)  \nF:___________ V:___________ T:____________","Item",1,0,{"$f":"D58*E58","v":0}]
[]
["17","B4.3 Planning, programme and method statements (clause 4.3)  \nF:___________ V:___________ T:____________","Item",1,0,{"$f":"D60*E60","v":0}]
[]
["18","B4.4 Quality assurance (clause 4.4)  \nF:___________ V:___________ T:____________","Item",1,0,{"$f":"D62*E62","v":0}]
[]
["19","B4.5 Setting out (clause 4.5)  \nF:___________ V:___________ T:____________","Item",1,0,{"$f":"D64*E64","v":0}]
[]
["20","B4.6 Management and disposal of water (clause 4.6) \nF:___________ V:___________ T:____________","Item",1,0,{"$f":"D66*E66","v":0}]
[]
["21","B4.7 Blasting (Clause 4.7)  \nF:___________ V:___________ T:____________","Item",1,0,{"$f":"D68*E68","v":0}]
[]
["22","B4.8 Works adjacent to services and structures (clause 4.8)  \nF:___________ V:___________ T:____________","Item",1,0,{"$f":"D70*E70","v":0}]
[]
["23","B4.9 Management of the Works and site (clause 4.9)  \nF:___________ V:___________ T:____________","Item",1,0,{"$f":"D72*E72","v":0}]
[]
["24","B4.10 Earthworks (clause 4.10)  \nF:___________ V:___________ T:____________","Item",1,0,{"$f":"D74*E74","v":0}]
[]
["25","B4.11 Testing (clause 4.11)  \nF:___________ V:___________ T:____________","Item",1,0,{"$f":"D76*E76","v":0}]
[]
[]
["26","B4.12 Materials, samples and fabrication drawings        \t(clause 4.12)  \nF:___________ V:___________ T:____________","Item",1,0,{"$f":"D79*E79","v":0}]
[]
["27","B4.13 Equipment (clause 4.13)  \nF:___________ V:___________ T:____________","Item",1,0,{"$f":"D81*E81","v":0}]
[]
["28","B4.14 Site establishment (clause 4.14)  \nF:___________ V:___________ T:____________  \nThe Contractor to provide a detailed Site Establishment plan to the Principal Agent.","Item",1,0,{"$f":"D83*E83","v":0}]
[]
["29","B4.15 Survey control (clause 4.15)  \nF:___________ V:___________ T:____________","Item",1,0,{"$f":"D85*E85","v":0}]
[]
["30","B4.16 Temporary works (clause 4.16)  \nF:___________ V:___________ T:____________","Item",1,0,{"$f":"D87*E87","v":0}]
[]
["31","B4.17 Existing services (clause 4.17)  \nF:___________ V:___________ T:____________  \nThe tenderer to note that the water and electricity supplies are restricted or possibly non-existent. Accordingly, the tenderer to ensure that temporary supplies (water tanks/electrical generators) are available on site to meet the project demands and to achieve continuity of the works on site.The use of potable water for construction activities is prohibited.","Item",1,0,{"$f":"D89*E89","v":0}]
[]
["32","B4.18 Health and safety (clause 4.18)  \nF:___________ V:___________ T:____________  \nThe Contractor shall provide all PPE requirements for all employees and visitors to the site, during the execution of the works.","Item",1,0,{"$f":"D91*E91","v":0}]
[]
["33","B4.19 Environmental requirements (clause 4.19)  \nF:___________ V:___________ T:____________","Item",1,0,{"$f":"D93*E93","v":0}]
[]
["34","B4.20 Alterations, additions, extensions and modifications to existing works (clause 4.20)   \nF:___________ V:___________ T:____________","Item",1,0,{"$f":"D95*E95","v":0}]
[]
["35","B4.21 Inspection of adjoining structures, services, buildings and property (clause 4.21)\nF:___________ V:___________ T:____________","Item",1,0,{"$f":"D97*E97","v":0}]
[]
["36","B4.22 Attendance on nominated and selected subcontractors \t(clause 22)  \nF:___________ V:___________ T:____________","Item",1,0,{"$f":"D99*E99","v":0}]
[]
["","SECTION C: SCOPE OF WORK IN ACCORDANCE WITH SANS 10403",{"$nulls":3},""]
[]
["","(The reference to Clauses refer to Table B.1 of SANS 1921-1:2004)","",null,null,""]
[]
["37","C.1 Certification by recognised bodies (clause 4.4)  \nF:___________ V:___________ T:____________  \nThe Contractor shall provide all original certification of compliance in respect of all specialist installations and compliance testing as deemed necessary or as stipulated by the engineer. Payment will be withheld in the absence of the provision of original compliance certificates.","Item",1,0,{"$f":"D105*E105","v":0}]
[]
["38","C.2 Agreement certificates (clause 4.5)  \nF:___________ V:___________ T:____________","Item",1,0,{"$f":"D107*E107","v":0}]
[]
["39","C.3 Other services and facilities (clause 4.8)  \nF:___________ V:___________ T:____________","Item",1,0,0]
[]
["40","C.4 Recording of weather (clause 5.2)  \nF:___________ V:___________ T:____________  \nA rain gauge shall be provided on site for the duration of the contract. A diary shall be maintained with all rainfall records and signed off by the Principal Agent and thereafter submitted to the Engineer at every site meeting.","Item",1,0,{"$f":"D111*E111","v":0}]
[]
["41","C.5 Management meetings (clause 5.3)  \nF:___________ V:___________ T:____________","Item",1,0,{"$f":"D113*E113","v":0}]
[]
["42","C.6 Daily records (clause 5.6)  \nF:___________ V:___________ T:____________","Item",1,0,{"$f":"D115*E115","v":0}]
[]
["43","C.7 Bond and guarantees (clause 5.7)  \nF:___________ V:___________ T:____________","Item",1,0,{"$f":"D117*E117","v":0}]
[]
["44","C.8 Permits (clause 5.9)  \nF:___________ V:___________ T:____________","Item",1,0,{"$f":"D119*E119","v":0}]
[]
["45","C.9 Proof of compliance with the law (clause 5.10)  \nF:___________ V:___________ T:____________","Item",1,0,{"$f":"D121*E121","v":0}]
[]
["","SECTION D: SPECIFICATION DATA ASSOCIATED WITH SANS 1921-1:2004 (Table A.1)",{"$nulls":3},""]
[]
["46","D.1 Requirements for drawings, information and calculations for which the Contractor is responsible (clause 4.1.7)  \nF:___________ V:___________ T:____________","Item",1,0,{"$f":"D125*E125","v":0}]
[]
["47","D.2 The responsibility strategy assigned to the Contractor for the works (clause 4.2.1)  \nF:___________ V:___________ T:____________","Item",1,0,{"$f":"D127*E127","v":0}]
[]
["48","D.3 The planning, programme and method statements (clause 4.3)  \nF:___________ V:___________ T:____________  \n\nThe Contractor must provide weekly programme updates to the Principal Agent including the identification of all the activities that are delayed and the proposed plan for corrective action.","Item",1,0,{"$f":"D129*E129","v":0}]
[]
["49","D.4 Samples of materials, workmanship and finishes (clause 4.12.1) \nF:___________ V:___________ T:____________","Item",1,0,{"$f":"D131*E131","v":0}]
[]
["50","D.5 Fabrication drawings that the Contractor is to provide and deliver to the employer (clause 4.12.2)  \nF:___________ V:___________ T:____________","Item",1,0,{"$f":"D133*E133","v":0}]
[]
["51","D.6 Office for the foreman (clause 4.14.3) \n F:___________ V:___________ T:____________","Item",1,0,{"$f":"D135*E135","v":0}]
[]
["52","D.7 Telephone (clause 4.14.3)  \nF:___________ V:___________ T:____________","Item",1,0,{"$f":"D137*E137","v":0}]
[]
["53","D.8 Office for inspector of works (clause 4.14.3)  \nF:___________ V:___________ T:____________","Item",1,0,{"$f":"D139*E139","v":0}]
[]
["54","D.9 Telephone in office for inspector of works            (clause 4.14.3)  \nF:___________ V:___________ T:____________","Item",1,0,{"$f":"D141*E141","v":0}]
[]
["55","D.10 Sheds (clause 4.14.3)  \nF:___________ V:___________ T:____________","Item",1,0,{"$f":"D143*E143","v":0}]
[]
["56","D.11 Provision and erection of signboards \t(clause 4.14.6)\nF:___________ V:___________ T:____________","Item",1,0,{"$f":"D145*E145","v":0}]
[]
["57","D.12 Termination, diversion or maintenance of existing services (clause 4.17.1)  \nF:___________ V:___________ T:____________","Item",1,0,{"$f":"D147*E147","v":0}]
[]
["58","D.13 Services which are known to exist (clause 4.17.3)  \nF:___________ V:___________ T:____________","Item",1,0,{"$f":"D149*E149","v":0}]
[]
["59","D.14 Detection apparatus (clause 4.17.4)  \nF:___________ V:___________ T:____________","Item",1,0,{"$f":"D151*E151","v":0}]
[]
["60","D.15 Additional health and safety requirements \t(clause 4.18)\nF:___________ V:___________ T:____________","Item",1,0,{"$f":"D153*E153","v":0}]
[]
["","SECTION  E: SPECIFIC PRELIMINARIES",{"$nulls":3},""]
[]
["","\tSection E contains Specific Preliminary items which apply to this contract except where \"N/A\" ( Not Applicable) appears against the item.","",null,null,""]
[]
["61","E1 PROPRIETARY BRANDED PRODUCTS \t\nThe tenderer shall take delivery of, handle, store, use apply and/or fix all proprietary branded products in strict accordance with the manufacturers' instruction after consultation with the manufacturer's authorised representative.\nF:___________ V:___________ T:____________","Item",1,0,{"$f":"D159*E159","v":0}]
[]
["62","E2 OVERTIME \t\nShould overtime be required to be worked for any reason whatsoever, the costs of such overtime are to be borne by the Contractor unless the Engineer/Principal Agent has specifically authorised in writing, prior to the execution thereof, that costs for such overtime are to be borne by the Employer.\nF:___________ V:___________ T:____________","Item",1,0,{"$f":"D161*E161","v":0}]
[]
["63","E3 AS BUILT DRAWINGS \t\nThe position of construction breaks and the extent of individual concrete pours are to be recorded by the Contractor on the Structural Engineer's drawings and are to be submitted to the Engineer/Principal Agent and the Structural Engineer for their records. \nF:___________ V:___________ T:____________","Item",1,0,{"$f":"D163*E163","v":0}]
[]
["64","E4 SITE INSTRUCTIONS  \t\nSite instructions issued on site are to be recorded in triplicate in a site instruction book which is to be maintained on site by the Contractor.  \nF:___________ V:___________ T:____________","Item",1,0,{"$f":"D165*E165","v":0}]
[]
["65","E5 LABOUR RECORD \t\nAt the end of each week for the full duration of the contract, the Contractor shall provide the Engineer/Principal agent with a written record, in schedule form, reflecting the number and description of tradesmen and labourers employed by him and all sub-contractors on the works each day. The Contractor shall provide the completed DPW local labour forms , records and schedules together with all supporting documentation ( certified ID copies , employee details, wage rates, proof of payment , period of employment, employment contracts, etc.). The client reserves the right to conduct random inspections on site to verify the local labour employed on the project.\nF:___________ V:___________ T:____________","Item",1,0,{"$f":"D167*E167","v":0}]
[]
["66","E6 PLANT RECORD \t\nAt the end of each week the Contractor shall provide the Engineer/Principal Agent with a written record, in schedule form, reflecting the number, type and capacity of all plant, excluding hand tools,  currently used on the works.\nF:___________ V:___________ T:____________","Item",1,0,{"$f":"D169*E169","v":0}]
[]
["67","E7 NON CESSION OF MONIES \t\nThe Contractor shall not cede nor assign his rights or claims to any monies due or to become due under this contract.\nF:___________ V:___________ T:____________","Item",1,0,{"$f":"D171*E171","v":0}]
[]
["68","E8 SECTIONAL COMPLETION  \t\nWhen it is required that the contract be executed in sections or portions, the tenderer shall allow for all costs in this regard as no claim for additional costs will be entertained.\nF:___________ V:___________ T:____________","Item",1,0,{"$f":"D173*E173","v":0}]
[]
["69","E9 LOCAL LABOUR \t \t\nIt is a general requirement of this contract that persons normally resident in the locality of the works (local labour) be given preference for employment on the contract. Provided, however, that should adequate and appropriate Labour not be available within the locality, other may be employed subject to satisfactory proof being provided that every reasonable endeavour has been made to employ local Labour. The Contractor shall identify the local community leaders with the purpose of negotiating with them regarding the utilization of local Labour in the construction process. The Contractor shall, in general, maximize the involvement of the local labour from the immediate community.  \nF:___________ V:___________ T:____________","Item",1,0,{"$f":"D175*E175","v":0}]
[]
["70","E10 IMPORT PERMITS AND DUTIES  \t\nThe responsibility for obtaining the necessary import permits shall rest with the successful Tenderer.  No foreign exchange will be arranged or provided by the Administration.  \tTenderers are to allow in their tenders and pay the ordinary levy imposed on imported items in terms of item 196.10 of Part 8 of Schedule No. 1 of the Customs and Excise Act, 1964 with effect from 1 October 1989.  \nF:___________ V:___________ T:____________","Item",1,0,{"$f":"D177*E177","v":0}]
[]
["71","E11 CONTRACT PRICE ADJUSTMENT PROVISIONS  (CPAP)  \t\nNotwithstanding anything to the contrary contained in the  GCC for Construction Works 2010 2nd Edition, this Contract shall only when the Construction Period exceeds 6 months and the Contract sum exceeds R1,000,000,00  be subject to the Contract Price Adjustment Provisions Indices Application Manual for use with P0151 indices (CPAP) (Revised 1 January 2013) as published by Statistics South Africa. Tenderers are advised that with reference to Clause 3.4.6 of the Contract Price Adjustment Provisions (CPAP) Indices Applications Manual, the Head: Public Works will not accept the submission by Tenderers of lists of  additional items unless otherwise instructed.  \t\n\nWhere this contract is a Lump Sum contract, the contract will be subject to Contract Price Adjustment Provisions (CPAP) only where the contract period equals or exceeds 6 calendar months. The applicable work group shall be WG 180 for domestic buildings or WG 181 for commercial and industrial buildings. \n F:___________ V:___________ T:____________","N/A"]
[]
["72","E12 EXPANDED PUBLIC WORKS PROGRAMME (EPWP)\t\t\nTenderers are advised that this contract will be subject to certain provisions of the Expanded Public Works Program (EPWP) aimed at alleviating and reducing unemployment.\tTenderers must allow for any costs for the following employment requirements of the EPWP.\t\n1. \t55% of unskilled labour to be women.\t\n2. \t40% of unskilled labour to be youth aged \tbetween 18 and 35 years.\t\n3. \t2% of unskilled labour to be people living \twith disability.\t\n4. \t100%  Unskilled labour utilised must reside within the boundries of the Municipality Ward where this contract is executed, with preference to the local community closest or at the walking distance to the contract site. Wherever possible local skilled tradesmen are to be employed on this contract with the view to maximize utilization of local resources. This is not an EPWP project. \t\nTENDERERS TO NOTE: Those parts of the contract to be constructed using Labour intensive methods have been marked in the bills of quantities/lump sum document  with the letters LI (indicating \"Labour Intensive\")  against every item so designated. The works, or parts of the works so designated are to be constructed using Labour intensive methods only. \nF:___________ V:___________ T:____________","N/A",null,null,""]
[]
["73","E12.1 LABOUR RATE AND PAYMENT INTERVALS  \t\nThe Contractor should ensure that labour rate paid to unskilled local labour is commensurate to the daily task. When determining the rate, consideration should be given to beneficiaries are mostly bread winners in their families, as the program intends alleviating poverty. There should also be consideration that the labour rate promotes creation of expanded number of jobs created and person days of work. \tThe labour rate for local unskilled shall also be determined in consideration of the location of the project, i.e. for projects implemented in urbanized municipalities will not be the same as that for rural municipalities.  \nF:___________ V:___________ T:____________","Item",1,0,{"$f":"D183*E183","v":0}]
[]
["74","E12.2 RECORD KEEPING  \t\nEvery employer must keep in the project site office the following minutes of site progress minutes; Contractor’s monthly site progress reports; accurately recorded attendance register; proof of payment as means to verify authenticity of data.  \nF:___________ V:___________ T:____________","Item",1,0,{"$f":"D185*E185","v":0}]
[]
["75","E13 HIV/AIDS AWARENESS  \t\nTenderers are to price against the following items for compliance with the SPECIFICATION FOR HIV/AIDS AWARENESS  bound into this document (The clauses referred to are those of the Specification for HIV/AIDS)  E13.1\tProvide and maintain a condom dispenser in terms of Clause 5.1a  \nF:___________ V:___________ T:____________","Item",1,0,{"$f":"D187*E187","v":0}]
[]
["76","E13.1 Provide and maintain HIV/AIDS awareness posters terms of Clause 5.1b  \nF:___________ V:___________ T:____________","Item",1,0,{"$f":"D189*E189","v":0}]
[]
["77","E13.2 HIV /Aids Awareness Programme on Site for not less than 90% of workers inclusive of all direct and indirect costs; \tEngage a qualified service provider as described in the scope of works to conduct an HIV Awareness Programme in terms of Clause 5.2.1a\nF:___________ V:___________ T:____________","Item",1,0,{"$f":"D191*E191","v":0}]
[]
["78","E13.3  Arrange for workers to attend the HIV Awareness Programme in terms of Clause 5.2.1b  \nF:___________ V:___________ T:____________","Item",1,0,{"$f":"D193*E193","v":0}]
[]
["79","E13.4 REPORTING  \t\nPrepare and attach to claims for payment a brief report in terms of Clause 5.3 (see also HIV/STI Compliance Report (included with this document).  \nF:___________ V:___________ T:____________","Item",1,0,{"$f":"D195*E195","v":0}]
[]
["","Note: \tIn the event that the Contractor fails to satisfy the requirements of this specification, the employer (Head: Public Works) may apply any of the sanctions provided for in the contract. Sanctions may include the application of a financial penalty of .04% of the Contract Sum.","",null,null,""]
[]
["80","E14 OCCUPATIONAL HEALTH AND SAFETY ACT NO. 85 OF 1993  \t\nTenderers are to allow for costs in providing  a project specific ' Construction Phase Safety, Health and Environmental Plan' in accordance with  \"Section 2 - Specification Data associated with SANS 1921-1:2004\" clause C4.18 in \"Part C3 - Scope of Work\"  \nF:___________ V:___________ T:____________","Item",1,0,{"$f":"D199*E199","v":0}]
[]
["81","E15 NOTICE BOARD, SITE OFFICE, ETC.  \t\nBidders are to allow for the provision and removal of a project notice board and a site office in accordance with the Principal Agent's requirements.  F:___________ V:___________ T:____________","Item",1,0,{"$f":"D201*E201","v":0}]
[]
["82","E16 IMPORTED MATERIALS AND EQUIPMENT  \t\nWhere imported items are listed in the tender documents, the tenderer shall provide all information called for, failing which the price of any such item, material or equipment shall be excluded from currency fluctuations.  \nF:___________ V:___________ T:____________","Item",1,0,{"$f":"D203*E203","v":0}]
[]
["83","E17 CONTRACT DOCUMENTS  \t\nThe drawings issued with these Bid documents do not comprise the complete set but serves as a guide only for Biding purposes and for indicating the scope of works to enable the Bidder to acquaint him with the nature and extent of the works and the manner in which they are to be executed.  \tShould any part of the drawings not be clearly legible to the Bidder he shall, before submitting his Bid, obtain clarification in writing from the Principal Agent. \nF:___________ V:___________ T:____________","Item",1,0,{"$f":"D205*E205","v":0}]
[]
["84","E18 GENERAL PREAMBLES  \nThe Document Preambles will be the “ASAQS Model Preambles for Trades - 2017” shall be read in conjunction with the Bills of Quantities and be referred to for the full descriptions of work to be done and materials to be used.  \nF:___________ V:___________ T:____________","Item",1,0,{"$f":"D207*E207","v":0}]
[]
["85","E19 TRADE NAMES  \t\nWherever a Trade Name for any product has been described in the Bills of Quantities the Bidder's attention is drawn to the fact that any other product of equal quality may be used subject to the written approval of the Principal Agent being obtained prior to the closing date for submission of Bids.  \nF:___________ V:___________ T:____________","Item",1,0,{"$f":"D209*E209","v":0}]
[]
["86","E20 EXISTING PREMISES \t\t \t\nThe Contractor's attention is drawn to the fact that the surrounding buildings will remain in occupation during the performance of this contract and it is essential that the interruption to the daily activities of be kept to a minimum during the construction activities, to this end, the Contractor must allow for working in co-operation with the Principal Agent in organising the work in such a way as to cause the minimum disruption to the normal activities of the precinct. \nF:___________ V:___________ T:____________","Item",1,0,{"$f":"D211*E211","v":0}]
[]
["87","E21 INACCURATE AND DEFECTIVE WORK EXECUTED UNDER PREVIOUS CONTRACT  \t\nThe Contractor shall, after taking possession of the site and before commencing the work, check all levels, liners, profiles and the like and satisfy himself as to the dimensional accuracy of all work executed under the previous contract which may affect his work.  \tShould any inaccurate or defective work be found, the Contractor shall immediately notify the Principal Agent in writing requesting his instructions with regard thereto and afford every facility to those rectifying such inaccurate or defective work. \nF:___________ V:___________ T:____________","Item",1,0,{"$f":"D213*E213","v":0}]
[]
["88","E22 VIEWING THE SITE IN SECURITY AREAS  \t\nIf the site is situated in a security area and the Bidder must arrange with the Authorities to obtain permission to enter the site.  \nF:___________ V:___________ T:____________","Item",1,0,{"$f":"D215*E215","v":0}]
[]
["89","E23 COMMENCEMENT OF WORKS IN SECURITY AREAS  \nIf the works falls within a security area, the Contractor must arrange with the Authorities and give the necessary notices before commencement of the works. Should the Contractor fail to make such arrangements, admission to the site may be refused and any additional costs will be for the Contractor's account.  \nF:___________ V:___________ T:____________","Item",1,0,{"$f":"D217*E217","v":0}]
[]
["90","E24 ENTRANCE PERMITS TO SECURITY AREAS  \t\nIf the works fall within a security area, the Contractor shall obtain entrance permits for his personnel and workmen entering the area and shall comply with all regulations and instructions which may be issued from time to time regarding the protection of persons and property under control of the Authority.  \nF:___________ V:___________ T:____________","Item",1,0,{"$f":"D219*E219","v":0}]
[]
["91","E25 SECURITY CHECK OF PERSONNEL  \t\nThe Principal Agent may require the Contractor to have his personnel and workmen, or a certain number of them, security classified.  \tIn the event of the Principal Agent requesting the removal of a person or persons from the works for security reasons, the Contractor shall do so forthwith and shall thereafter ensure that such person or persons are denied access to the works and the site and/or to any document or information relating to the works.  \nF:___________ V:___________ T:____________","Item",1,0,{"$f":"D221*E221","v":0}]
[]
["92","E26 PROHIBITION ON TAKING PHOTOGRAPHS  \t\nIn terms of article 119 of the Defence Act, 44 of 1957, it is prohibited to sketch or to take photographs of any military site or installation or any building or civil works thereon or to be in possession of a camera or other apparatus used for taking photographs, except when authorised thereto by or on behalf of the Minister.\"  \tThe same prohibition is also applicable to all Correctional Institutions in terms of article 44.1(e) of the Correctional Services Act 8 of 1959.  \nF:___________ V:___________ T:____________","Item",1,0,{"$f":"D223*E223","v":0}]
[]
["93","E27 NATURE AND EXTENT OF WORK  \t\nThe broad scope of the work comprises repairs, renovation, alterations and replacement of roofing and waterproofing elements including investigative studies on existing mechanical and electrical elements. \n F:___________ V:___________ T:____________","Item",1,0,{"$f":"D225*E225","v":0}]
[]
["94","E28 PROTECTION OF EXISTING  \t\nEvery care shall be taken to protect all parts of the building and ground against disfigurement of any kind. The Contractor shall be responsible for any damage caused to vehicles, persons or property by his operations, and he will be required to supply and maintain such temporary measures as are required, to prevent such damage.  \nF:___________ V:___________ T:____________","Item",1,0,{"$f":"D227*E227","v":0}]
[]
["95","E29 ACCESS  \nThe Contractor is to allow for all costs associated with sites having restricted access due to location, road conditions, etc. The Contractor to note the sites have extremely restricted access and in some instances , restricted access may affect the delivery of materials etc. The Contractor to accordingly ensure the most suitable and effective access routes are investigated and implemented to achieve continuity of the works.  \nF:___________ V:___________ T:____________","Item",1,0,{"$f":"D229*E229","v":0}]
[]
["96","E30 SAFETY TO THE SITE \nAll scaffolding, protection, machinery and tools on the site shall be erected, used and/or maintained in accordance of the requirements of the Occupational Health and Safety Act (85/1993) as amended and any regulations thereto. All relevant local authority by-laws shall also be complied with. The Contractor to provide suitable hoarding to demarcate the area of the construction works from the other adjacent operational areas. All open excavations and incomplete construction work to be cordoned off with danger tape.  Contractor to note that access to the site is restricted to the main entrance only.  \nF:__________ V:__________ T:___________","Item",1,0,{"$f":"D231*E231","v":0}]
[]
["97","E31 ASBESTOS CEMENT \nAll preparatory work, alterations, demolitions, etc. to existing asbestos cement roof sheeting, gutters, rainwater pipes, etc. are to be carried out strictly in accordance with statutory requirements (Occupational Health and Safety Act, 1993 - Asbestos Regulations, 2001) and all necessary precautions must be taken when working with and disposing of asbestos cement products and the disposing of waste resulting from cleaning operations, etc.  \tAllowance is to be made for costs associated with compliance with these Regulations.  F:___________ V:___________ T:____________","Item",1,0,{"$f":"D233*E233","v":0}]
[]
["98","E32 EXISTING PREMISES OCCUPIED\nThe Contractor shall carry out the whole of the works with as little mess and noise as possible and with a minimum of disturbance to adjoining building and occupants. He shall provide proper protection and provide, erect and remove when directed, any temporary tarpaulins, temporary fences that may be necessary during the progress of the works, all to the satisfaction of the Principal Agent. The Contractor is to provide all site security personnel.\nF:__________ V:__________ T:___________","Item",1,0,{"$f":"D235*E235","v":0}]
[]
["99","E33 HOISTING/WASTE CHUTES\nThe Contractor must allow for hoisting equipment and rubble chutes for removal of redundant material off-site.  F:___________ V:___________ T:____________","Item",1,0,{"$f":"D237*E237","v":0}]
[]
["","SECTION NO. 2",{"$nulls":3},""]
["","EXTERNAL WORKS",{"$nulls":3},""]
["","BILL NO. 1",{"$nulls":3},""]
["","PUMP ROOM (PROVISIONAL) (ALL TRADES)",{"$nulls":3},""]
[]
["","The Tenderer is referred to the relevant Clauses in the separate document Model Preambles for Trades (2017 Edition).","",null,null,""]
[]
["","EARTHWORKS (PROVISIONAL)",{"$nulls":3},""]
["","EXCAVATION OTHER THAN BULK",{"$nulls":3},""]
[]
["","Excavation in earth not exceeding 2m deep",{"$nulls":3},""]
["1","Reduce levels under floors","m3",7,0,{"$f":"D250*E250","v":0}]
[]
["2","Trenches","m3",14,0,{"$f":"D252*E252","v":0}]
[]
["","CARTING AWAY",{"$nulls":3},""]
[]
["","Extra over all excavations for carting away",{"$nulls":3},""]
[]
["3","Surplus material from excavations and/or stocked piles on site to a dumping site to be located by the contractor","m3",12,0,{"$f":"D258*E258","v":0}]
[]
["","KEEPING EXCAVATIONS FREE OF WATER",{"$nulls":3},""]
[]
["","Keeping excavations free of water",{"$nulls":3},""]
[]
["4","Allow for keeping excavations free of water or mud by hand or machinery","Item",1,0,{"$f":"D264*E264","v":0}]
[]
["","FILLING, ETC.",{"$nulls":3},""]
[]
["","Earth filling supplied by the contractor under floors, etc.",{"$nulls":3},""]
[]
["5","150mm G5 Material in accordance with SABS 1200 DM compacted to 98% Mod. AASHTO density","m3",4,0,{"$f":"D270*E270","v":0}]
[]
["","EXCAVATION, FILLING, ETC OTHER THAN BULK",{"$nulls":3},""]
[]
["","Earth filling obtained from the excavations and/or prescribed stock piles on site, compacted in layers not exceeding 150mm thick to 95% Mod AASHTO density",{"$nulls":3},""]
[]
["6","Backfilling to trenches, holes, etc.","m3",9,0,{"$f":"D276*E276","v":0}]
[]
["","COMPACTION",{"$nulls":3},""]
[]
["","Compaction of surfaces",{"$nulls":3},""]
[]
["7","Compaction of ground surfaces under floors, etc. including scarifying for a depth of 150mm, breaking down oversize material, adding suitable material where necessary and compacting to 93% Mod. AASHTO density","m2",27,0,{"$f":"D282*E282","v":0}]
[]
["","TESTS",{"$nulls":3},""]
[]
["","Prescribed density tests on filling",{"$nulls":3},""]
[]
["8","Modified AASHTO Density test","No",1,0,{"$f":"D288*E288","v":0}]
[]
["9","\"Field Density\" test including \"Optimum Moisture Content\" (four readings per test)","No",1,0,{"$f":"D290*E290","v":0}]
[]
["","SOIL POISONING",{"$nulls":3},""]
[]
["","Soil insecticide in accordance to SANS 5859",{"$nulls":3},""]
[]
["10","Under floors, etc. including forming and poisoning shallow furrows against foundation walls, etc., filling in furrows and ramming","m2",27,0,{"$f":"D296*E296","v":0}]
[]
["11","To bottoms and sides of trenches, holes, etc.","m2",56,0,{"$f":"D298*E298","v":0}]
[]
["","CONCRETE, FORMWORK AND REINFORCEMENT",{"$nulls":3},""]
[]
["","UNREINFORCED CONCRETE CAST AGAINST EXCAVATED SURFACES",{"$nulls":3},""]
[]
["","15MPa Concrete",{"$nulls":3},""]
[]
["12","Surface blinding under footings, etc.","m3",1,0,{"$f":"D306*E306","v":0}]
[]
["","REINFORCED CONCRETE CAST AGAINST EXCAVATED SURFACES",{"$nulls":3},""]
[]
["","25Mpa/19mm Concrete",{"$nulls":3},""]
[]
["13","Strip footings","m3",4,0,{"$f":"D312*E312","v":0}]
[]
["14","Surface beds","m3",3,0,{"$f":"D314*E314","v":0}]
[]
["","REINFORCED CONCRETE CAST ON/IN FORMWORK",{"$nulls":3},""]
[]
["","25Mpa/19mm Concrete",{"$nulls":3},""]
[]
["15","Plinth","m3",3,0,{"$f":"D320*E320","v":0}]
["","CONCRETE SUNDRIES",{"$nulls":3},""]
[]
["","Finishing top surfaces of concrete with non slip wood float",{"$nulls":3},""]
[]
["16","Surface beds, slabs, etc.","m2",27,0,{"$f":"D325*E325","v":0}]
[]
["","Test blocks",{"$nulls":3},""]
[]
["17","Prepare a set of three concrete cubes each cube size 150 x 150 x 150mm for strength cubes and deliver to an approved laboratory for testing and pay all charges in connection therewith","Sets",2,0,{"$f":"D329*E329","v":0}]
[]
["","ROUGH FORMWORK (DEGREE OF ACCURACY II)",{"$nulls":3},""]
[]
["","Rough formwork to sides",{"$nulls":3},""]
[]
["18","Edges, risers, ends and reveals not exceeding 300mm high","m",20,0,{"$f":"D335*E335","v":0}]
[]
["","Boxing in smooth formwork to form",{"$nulls":3},""]
[]
["19","50mm Horizontal chamfer at corner","m",13,0,{"$f":"D339*E339","v":0}]
[]
["","MOVEMENT JOINTS, ETC.",{"$nulls":3},""]
[]
["","Saw cut joints",{"$nulls":3},""]
[]
["20","3 x 30mm Saw cut joints in top of concrete","m",15,0,{"$f":"D345*E345","v":0}]
[]
["","Expansion joints with 10mm softboard between vertical concrete surfaces",{"$nulls":3},""]
[]
["21","10mm Joints not exceeding 300mm high","m",23,0,{"$f":"D349*E349","v":0}]
[]
["","Isolation joints with 10mm polystyrene between vertical concrete and brick surfaces",{"$nulls":3},""]
[]
["22","10mm Joints not exceeding 300mm high","m",30,0,{"$f":"D353*E353","v":0}]
[]
["","REINFORCEMENT",{"$nulls":3},""]
[]
["","High tensile steel reinforcement to structural concrete work",{"$nulls":3},""]
[]
["23","Bars of varying diameters","t",{"v":0.6,"d":"0.600"},0,{"$f":"D359*E359","v":0}]
[]
["","Fabric reinforcement",{"$nulls":3},""]
[]
["24","Type 193 fabric reinforcement in concrete surface bed, slabs, etc.","m2",27,0,{"$f":"D363*E363","v":0}]
[]
["","MASONRY",{"$nulls":3},""]
[]
["","BRICKWORK IN FOUNDATIONS (PROVISIONAL)",{"$nulls":3},""]
[]
["","Brickwork of NFX (14Mpa nominal compressive strength) in class II mortar ",{"$nulls":3},""]
[]
["25","One brick walls","m2",17,0,{"$f":"D371*E371","v":0}]
[]
["","BRICKWORK IN SUPERSTRUCTURE",{"$nulls":3},""]
[]
["","Brickwork of NFX bricks (14 MPa nominal compressive strength) in class II mortar",{"$nulls":3},""]
[]
["26","One brick walls","m2",78,0,{"$f":"D377*E377","v":0}]
[]
["","BRICKWORK SUNDRIES",{"$nulls":3},""]
[]
["","Bagging of 1:3 cement and sand mixture",{"$nulls":3},""]
[]
["27","On outer face of inner skin of brick walls including any additional labour required in raising wall in two separate skins and working around brick reinforcing fabric","m2",78,0,{"$f":"D383*E383","v":0}]
[]
["","Galvanised brickwork reinforcement",{"$nulls":3},""]
[]
["28","150mm Wide reinforcement built in horizontally","m",312,0,{"$f":"D387*E387","v":0}]
[]
["","FACE BRICKWORK",{"$nulls":3},""]
[]
["","\"Corobrik Onyx Travertine\" or other equal approved face bricks in stretcher bond with raked joints and perpends internally and externally",{"$nulls":3},""]
[]
["29","Extra over brickwork for face brickwork","m2",78,0,{"$f":"D393*E393","v":0}]
[]
["","WATERPROOFING",{"$nulls":3},""]
[]
["","DAMPPROOFING OF WALLS AND FLOORS",{"$nulls":3},""]
[]
["","One layer of 250 micron Gunplas USB Green DPM and approved adhesive tape",{"$nulls":3},""]
[]
["30","Under surface beds","m2",27,0,{"$f":"D401*E401","v":0}]
[]
["","JOINT SEALANTS, ETC.",{"$nulls":3},""]
[]
["","Two-part grey polysulphide sealing compound including backing cord, bond breaker, primer, etc.",{"$nulls":3},""]
[]
["31","3 x 15mm In saw cut joints in floors","m",15,0,{"$f":"D407*E407","v":0}]
[]
["32","20 x 15mm In isolation joints in floors","m",30,0,{"$f":"D409*E409","v":0}]
[]
["","One-part 'Dow Corning 813C' or other equal approved silicone sealant",{"$nulls":3},""]
[]
["33","In 10mm joints not exceeding 300mm high","m",23,0,{"$f":"D413*E413","v":0}]
[]
["","ROOF COVERINGS, ETC.",{"$nulls":3},""]
[]
["","PROFILED METAL SHEETING AND ACCESSORIES",{"$nulls":3},""]
["","Global Roofing Solutions 0.53mm thick 700mm cover Klip-Tite profile Zincalume AZ150 spelter G550 pre-coated roof sheeting, colour both sides to be determined on site (standard colors will be considered), or other equal and approved to match existing, fixed to timber purlins (elsewhere measured) at maximum 1900mm centres (final spacing to be calculated by an Engineer) using KL700 plus clips fixed with 16 x 16mm long self-drilling wafer head PH2 screws, drill point fasteners (fastener lengths may vary depending on the insulation used or requirements), installed as per manufacturer`s specifications and recommendations, by an approved installer",{"$nulls":3},""]
[]
["34","Roof covering with pitch not exceeding 25 degrees","m2",32,0,{"$f":"D420*E420","v":0}]
[]
["","SHEET METAL FLASHINGS, LININGS, COPINGS, ETC.",{"$nulls":3},""]
[]
["","0.53mm Purpose made pre-coated zinc aluminium flashings, flute closers and all accessories to match roof sheeting installed according to manufacturers instructions ",{"$nulls":3},""]
[]
["35","Counter-flashings, approximately 185 mm girth, two times bent, including fixings","m",26,0,{"$f":"D426*E426","v":0}]
[]
["","ROOF AND WALL INSULATION",{"$nulls":3},""]
[]
["","\"Sisalation 420\" heavy industrial grade aluminium foil based insulation",{"$nulls":3},""]
[]
["36","Insulation laid taut over purlins and fixed concurrent with roof covering including galvanised steel straining wires","m2",32,0,{"$f":"D432*E432","v":0}]
[]
["","CARPENTRY AND JOINERY",{"$nulls":3},""]
[]
["","ROOFS, ETC.",{"$nulls":3},""]
[]
["","Sawn softwood ",{"$nulls":3},""]
[]
["37","38 x 114mm Wall plates","m",16,0,{"$f":"D440*E440","v":0}]
[]
["38","152 x 38mm Rafter","m",33,0,{"$f":"D442*E442","v":0}]
[]
["39","50 x 76mm Purlins","m",45,0,{"$f":"D444*E444","v":0}]
[]
["40","38 x 114mm False timber rafter fixed onto truss for fascia boards","m",13,0,{"$f":"D446*E446","v":0}]
[]
["","EAVES, VERGES, ETC.",{"$nulls":3},""]
[]
["","'Everite Nutec' or other equal approved medium density plain fibre-cement fascias",{"$nulls":3},""]
[]
["41","12 x 225mm Fascia boards including galvanised steel H-profile jointing strips","m",26,0,{"$f":"D452*E452","v":0}]
[]
["","METALWORK",{"$nulls":3},""]
[]
["","STEEL STRONGROOM DOORS, VENTILATORS, ETC.",{"$nulls":3},""]
[]
["","Louvred doors etc suitable for 220mm walls fixed to brickwork",{"$nulls":3},""]
[]
["42","1510 x 2032mm High steel high double louvred door, consisting of two equal leaves of size 755 x 2032mm high with minimum 100mm rebated meeting stiles and 50mm frame complete with mechanism and fixing lugs including all ironmongery","No",1,0,{"$f":"D460*E460","v":0}]
[]
["","PLASTERING",{"$nulls":3},""]
[]
["","SCREEDS",{"$nulls":3},""]
[]
["","Granolithic screeds on concrete",{"$nulls":3},""]
[]
["43","Average 20mm thick on floors","m2",27,0,{"$f":"D468*E468","v":0}]
[]
["","INTERNAL PLASTER",{"$nulls":3},""]
[]
["","Cement plaster steel trowelled, on brickwork",{"$nulls":3},""]
[]
["44","On walls","m2",78,0,{"$f":"D474*E474","v":0}]
[]
["","PLUMBING AND DRAINAGE (PROVISIONAL)",{"$nulls":3},""]
[]
["","RAINWATER DISPOSAL",{"$nulls":3},""]
[]
["","uPVC gutters and rainwater pipes",{"$nulls":3},""]
[]
["45","110mm Half-round gutters including fixings","m",8,0,{"$f":"D482*E482","v":0}]
[]
["46","75mm Diameter uPVC downpipes","m",4,0,{"$f":"D484*E484","v":0}]
[]
["47","Extra over eaves gutter outlet for 75mm diameter rainwater downpipes","No",1,0,{"$f":"D486*E486","v":0}]
[]
["48","Extra over eaves gutter for stopped ends ","No",2,0,{"$f":"D488*E488","v":0}]
[]
["49","Extra over rainwater downpipes for bends","No",2,0,{"$f":"D490*E490","v":0}]
[]
["50","Extra over rainwater downpipes for shoes","No",1,0,{"$f":"D492*E492","v":0}]
[]
["","PAINTWORK",{"$nulls":3},""]
[]
["","PAINTWORK, ETC. TO NEW WORK",{"$nulls":3},""]
[]
["","\"PLASCON\" OR OTHER EQUAL AND APPROVED",{"$nulls":3},""]
[]
["","ON INTERNAL FLOATED PLASTER SURFACES",{"$nulls":3},""]
[]
["","Prepare and brush surface to remove all loose contaminants and apply one coat alkali resistant primer, one undercoat and two coats ‘PLASCON Wall & All’ or other approved emulsion paint for interior use",{"$nulls":3},""]
[]
["51","Walls","m2",78,0,{"$f":"D504*E504","v":0}]
[]
["","ON FIBRE-CEMENT SURFACES",{"$nulls":3},""]
[]
["","Prepare and apply, one coat alkali resistant primer, one undercoat and two coats approved exterior quality acrylic PVA emulsion paint to selected tints on",{"$nulls":3},""]
[]
["52","Fascia boards","m2",9,0,{"$f":"D510*E510","v":0}]
[]
["","ON WOOD SURFACES",{"$nulls":3},""]
[]
["","Prepare surfaces and remove all loose material, apply two coats 'ABE Provonite' carbolineum or equal approved anti-corrosive coal tar paint",{"$nulls":3},""]
[]
["53","On roof timbers at eaves and verges","m2",10,0,{"$f":"D516*E516","v":0}]
[]
["","BUDGETARY ALLOWANCES",{"$nulls":3},""]
[]
["54","Provide the sum of R 50,000.00 (Fifty Thousand Rand) for sundry builders work.","Item",1,{"v":50000,"d":"R50,000.00"},{"$f":"D520*E520","v":{"v":50000,"d":"R50,000.00"}}]
[]
["","SECTION NO. 2",{"$nulls":3},""]
[]
["","EXTERNAL WORKS",{"$nulls":3},""]
[]
["","BILL NO. 2",{"$nulls":3},""]
[]
["","EXTERNAL WATER SUPPLY  (PROVISIONAL) (ALL TRADES BILL)",{"$nulls":3},""]
[]
["","The Tenderer is referred to the relevant Clauses in the separate document General Preambles for Trades (2017 Edition)","",null,null,""]
[]
["","SUPPLEMENTARY PREAMBLES",{"$nulls":3},""]
[]
["","Any reference to trade names in the Bills of Quantities or  Architect's specification or drawings shall deem to mean \"or similar and approved\"","",null,null,""]
[]
["","NOTE :All Civil works to be carried out in accordance with the standardised SABS 1200 specifications","",null,null,""]
[]
["","PIPEWORK",{"$nulls":3},""]
[]
["","Prices of concrete encasement around pipes, bends, etc. and concrete anchor blocks shall include for all additional excavation and formwork required.  Tenderers are referred to the Engineer's typical detail (Drawing No. 617/101 P1)","",null,null,""]
[]
["","HDPE PE100 (Class 16) pipes in trenches for use under ground in accordance with compression including excavation, bedding material and back filling, compaction as required by the engineer, spoil disposal, risk of collapse and dewatering of trenches, etc.",{"$nulls":3},""]
[]
["1","110mm dia. PE 100, PN 16 HDPE water pipe from existing boreholes to storage tank laid in and including trenches not exceeding 1m deep","m",1500,0,{"$f":"D544*E544","v":0}]
[]
["2","110mm dia. PE 100, PN 16 HDPE water pipe from new borehole to storage tank laid in and including trenches not exceeding 1m deep","m",250,0,{"$f":"D546*E546","v":0}]
[]
["3","110mm dia. PE 100, PN 16 HDPE water pipe from municipal meter to storage tank laid in and including trenches not exceeding 1m deep","m",370,0,{"$f":"D548*E548","v":0}]
[]
["4","110mm dia. PE 100, PN 16 HDPE water pipe reticulation main from storage tank to existing buildings laid in and including trenches not exceeding 1m deep","m",1750,0,{"$f":"D550*E550","v":0}]
[]
["","Extra on HDPE pipes for:",{"$nulls":3},""]
[]
["5","110mm HDPE bend","No",60,0,{"$f":"D554*E554","v":0}]
[]
["6","110mm HDPE tee","No",23,0,{"$f":"D556*E556","v":0}]
[]
["7","110mm HDPE adaptor","No",48,0,{"$f":"D558*E558","v":0}]
[]
["8","110mm HDPE reducer","No",20,0,{"$f":"D560*E560","v":0}]
[]
["9","110mm HDPE endcap","No",2,0,{"$f":"D562*E562","v":0}]
[]
["10","110mm HDPE coupling","No",40,0,{"$f":"D564*E564","v":0}]
[]
["","Taps, Valves, etc.",{"$nulls":3},""]
[]
["11","110mm Isolating valve","No",18,0,{"$f":"D568*E568","v":0}]
[]
["12","110mm Cast iron non-return valve","No",6,0,{"$f":"D570*E570","v":0}]
[]
["13","110mm Cast iron flanged strainer","No",6,0,{"$f":"D572*E572","v":0}]
[]
["","Valve chambers, etc",{"$nulls":3},""]
[]
["14","Isolation valve chamber size internally 600 x 600mm not exceeding 1m deep to invert fitted with and including Valve Box Type 3A (SABS 558) including excavations 20mpa concrete base, backing, brickwork, backfill, bedding, etc. installed in accordance with the Engineer's details. Refer to Engineer's drawing No. 617/101 P1","No",24,0,{"$f":"D576*E576","v":0}]
[]
["","20MPa/19mm unreinforced concrete thrust blocks to pipe fittings",{"$nulls":3},""]
[]
["15","Size, extreme 505 x 400 x 300mm high ","No",25,0,{"$f":"D580*E580","v":0}]
[]
["16","Size, extreme 555 x 500 x 400mm high","No",60,0,{"$f":"D582*E582","v":0}]
[]
["","Class 34 uPVC pipes for sleeves exceeding 100mm and not exceeding 200mm external diameter",{"$nulls":3},""]
[]
["17","200mm Diameter sleeves laid in and including excavation not exceeding 2m deep including backfilling, etc. compacted in layers","m",116,0,{"$f":"D586*E586","v":0}]
[]
["","Excavation in rock",{"$nulls":3},""]
[]
["18","Extra over excavation in earth for pipe trenches, chambers, etc for excavation in soft rock","m3",153,0,{"$f":"D590*E590","v":0}]
[]
["19","Extra over excavation in earth for pipe trenches, chambers, etc for excavation in hard rock","m3",305,0,{"$f":"D592*E592","v":0}]
[]
["","Sundries",{"$nulls":3},""]
[]
["20","150mm x 150mm x 1200mm high Precast concrete beacon marker, consisting of a 50 x 75mm high recessed lettering section into concrete, painted with two coats of an approved white paint and black lettering, including a 350 x 350 x 500mm deep 15MPa concrete base, all in accordance with the Engineer's drawing No. 617/101 P1","No",40,0,{"$f":"D596*E596","v":0}]
[]
["21","300mm x 75mm x 500mm high Precast concrete valve marker, consisting of a 50 x 75mm high recessed lettering section into concrete, painted with two coats of an approved white paint and black lettering, all in accordance with the Engineer's drawing No. 617/101 P1","No",24,0,{"$f":"D598*E598","v":0}]
[]
["","Testing",{"$nulls":3},""]
[]
["22","Testing of the water pipe system","Item",1,0,{"$f":"D602*E602","v":0}]
[]
["","Municipal connections",{"$nulls":3},""]
[]
["23","Provide the sum of R 100 000.00 (One Hundred Thousand Rand) for municipal connections.","Item",1,{"v":100000,"d":"R100,000.00"},{"$f":"D606*E606","v":{"v":100000,"d":"R100,000.00"}}]
[]
["24","Allow for profit on above","Item",1,0,{"$f":"D608*E608","v":0}]
[]
["25","Allow for general attendance on above","Item",1,0,{"$f":"D610*E610","v":0}]
[]
["","BUDGETARY ALLOWANCES",{"$nulls":3},""]
[]
["26","Provide the sum of R400 000.00 (Four Hundred Thousand Rand) for New Borehole Investigation and Installation","Item",1,{"v":400000,"d":"R400,000.00"},{"$f":"D614*E614","v":{"v":400000,"d":"R400,000.00"}}]
[]
["27","Allow for general attendance on above","Item",1,0,{"$f":"D616*E616","v":0}]
[]
["28","Allow for profit on above","Item",1,0,{"$f":"D618*E618","v":0}]
[]
["29","Provide the sum of R30 000.00 (Thirty Thousand Rand) for the removal of trees, tree stumps, etc.","Item",1,{"v":30000,"d":"R30,000.00"},{"$f":"D620*E620","v":{"v":30000,"d":"R30,000.00"}}]
[]
["30","Allow for general attendance on above","Item",1,0,{"$f":"D622*E622","v":0}]
[]
["31","Allow for profit on above","Item",1,0,{"$f":"D624*E624","v":0}]
[]
["","GALVANISED STEEL WATER TANK",{"$nulls":3},""]
[]
["","SUPPLEMENTARY PREAMBLES",{"$nulls":3},""]
[]
["","Any reference to trade names in the Bills of Quantities or  Architect's specification or drawings shall deem to mean \"or equal and approved\"","",null,null,""]
[]
["","The Tenderer is referred to the relevant Clauses in the separate document General Preambles for Trades (2017 Edition)","",null,null,""]
[]
["","EARTHWORKS",{"$nulls":3},""]
[]
["","EXCAVATION, FILLING, ETC., OTHER THAN BULK",{"$nulls":3},""]
[]
["","Excavation in earth or compacted filling not exceeding 2m deep",{"$nulls":3},""]
[]
["32","Plinth base","m3",100,0,{"$f":"D640*E640","v":0}]
[]
["","Extra over all excavations for carting away",{"$nulls":3},""]
[]
["33","Surplus material from excavations and/or stock piles on site to a dumping site to be located by the contractor","m3",150,0,{"$f":"D644*E644","v":0}]
[]
["","Risk of collapse of excavations",{"$nulls":3},""]
[]
["34","Sides of trench and hole excavations not exceeding 1,5m deep","m2",28,0,{"$f":"D648*E648","v":0}]
[]
["","FILLING ETC",{"$nulls":3},""]
[]
["","Approved G2 filling supplied and carted on by the Contractor, compacted in layers not exceeding 150mm to 102% Mod. AASHTO density",{"$nulls":3},""]
[]
["35","Under floors","m3",53,0,{"$f":"D654*E654","v":0}]
[]
["","Compaction of surfaces",{"$nulls":3},""]
[]
["36","Compaction of natural or excavated ground surface under floors etc, including scarifying for a depth of 150mm, breaking down oversize material, adding suitable material where necessary and compacting to 90% Mod AASHTO density","m2",188,0,{"$f":"D658*E658","v":0}]
[]
["","WEED KILLERS, INSECTICIDES, ETC.",{"$nulls":3},""]
[]
["","Soil poisoning in accordance with SANS 5859",{"$nulls":3},""]
[]
["37","Under floors, etc., including forming and poisoning shallow furrows against foundation walls etc., filling in furrows and ramming","m2",188,0,{"$f":"D664*E664","v":0}]
[]
["38","To bottoms and sides of trenches etc","m2",230,0,{"$f":"D666*E666","v":0}]
[]
["","CONCRETE, FORMWORK AND REINFORCEMENT",{"$nulls":3},""]
[]
["","UNREINFORCED CONCRETE CAST AGAINST EXCAVATED SURFACES",{"$nulls":3},""]
[]
["","15MPa/19mm concrete",{"$nulls":3},""]
[]
["39","Surface blinding under strip footings and bases","m3",9,0,{"$f":"D674*E674","v":0}]
[]
["","REINFORCED CONCRETE CAST AGAINST FORMWORK",{"$nulls":3},""]
[]
["","30MPa/19mm Concrete",{"$nulls":3},""]
[]
["40","Strip footings","m3",53,0,{"$f":"D680*E680","v":0}]
[]
["41","Slabs including beams and inverted beams","m3",15,0,{"$f":"D682*E682","v":0}]
[]
["42","Plinths","m3",31,0,{"$f":"D684*E684","v":0}]
[]
["","TEST CUBES",{"$nulls":3},""]
[]
["43","Making and testing 150 x 150 x 150mm concrete strength test cube (Provisional)","No",20,0,{"$f":"D688*E688","v":0}]
[]
["","CONCRETE SUNDRIES",{"$nulls":3},""]
[]
["","Finishing top surfaces of concrete smooth with a wood float",{"$nulls":3},""]
[]
["44","Plinths","m2",51,0,{"$f":"D694*E694","v":0}]
[]
["","Finishing top surfaces of concrete smooth with a steel float",{"$nulls":3},""]
[]
["45","Surface beds, slabs, etc.","m2",73,0,{"$f":"D698*E698","v":0}]
[]
["","\"Prostruct 617\" Non-Sag Epoxy Adhesive or equal and approved applied to tops of reinforced concrete plinths (elsewhere measured) in accordance with the Engineer's recommendation",{"$nulls":3},""]
[]
["46","Apply general purpose epoxy adhesive, grouted onto reinforced concrete plinths, 10mm deep x 100mm wide to secure galvanised steel plates (elsewhere measured)","m",171,0,{"$f":"D702*E702","v":0}]
[]
["","FORMWORK",{"$nulls":3},""]
[]
["","ROUGH FORMWORK (DEGREE OF ACCURACY II)",{"$nulls":3},""]
[]
["","Rough formwork to sides",{"$nulls":3},""]
[]
["47","Strip footings","m2",153,0,{"$f":"D710*E710","v":0}]
[]
["48","Walls with total height not exceeding 3.5m high","m2",211,0,{"$f":"D712*E712","v":0}]
[]
["","SMOOTH FORMWORK (DEGREE OF ACCURACY I)",{"$nulls":3},""]
[]
["","Extra over rough formwork for smooth formwork to sides",{"$nulls":3},""]
[]
["49","Walls with total height not exceeding 3.5m high","m2",211,0,{"$f":"D718*E718","v":0}]
[]
["","Boxing in smooth formwork to form",{"$nulls":3},""]
[]
["50","25 x 25mm Chamfer along edges at corners","m",351,0,{"$f":"D722*E722","v":0}]
[]
["","REINFORCEMENT",{"$nulls":3},""]
[]
["","High tensile steel reinforcement to structural concrete work",{"$nulls":3},""]
[]
["51","10mm Diameter bars","t",5.61,0,{"$f":"D728*E728","v":0}]
[]
["52","12mm Diameter bars","t",5.61,0,{"$f":"D730*E730","v":0}]
[]
["53","16mm Diameter bars","t",5.61,0,{"$f":"D732*E732","v":0}]
[]
["","WATERPROOFING",{"$nulls":3},""]
[]
["","DAMP PROOFING OF WALLS AND FLOORS",{"$nulls":3},""]
[]
["","One layer 250 micron green polyethylene waterproof sheeting (SANS 952-1985 type C) sealed at laps with PVC self-adhesive tape",{"$nulls":3},""]
[]
["54","Under surface beds","m2",188,0,{"$f":"D740*E740","v":0}]
[]
["","METALWORK",{"$nulls":3},""]
[]
["","SUNDRY STEELWORK",{"$nulls":3},""]
[]
["","Hot dipped galvanised steel plates fixed to tops of reinforced concrete plints with \"Prostruct 617\" Non-Sag Epoxy Adhesive (elsewhere measured) or other equal and approved",{"$nulls":3},""]
[]
["55","100 x 10mm Thick steel plates","t",1.34,0,{"$f":"D748*E748","v":0}]
[]
["","RECTANGULAR POTABLE WATER STORAGE TANK",{"$nulls":3},""]
[]
["","Hot-dip galvanised steel sectional water tanks etc. on reinforced concrete plinth support structure supplied by ABECO Tanks or other equal and approved (elsewhere measured)",{"$nulls":3},""]
[]
["56","457 000 Litre water tank, size 17080 x 10980 x 2440mm high, formed of 1220 x 1220mm hot-dipped galvanised steel panels, including all stays, rubbers, sealants, bolts and nuts required for watertight assembly to be installed on reinforced concrete plinths (elsewhere measured) all in accordance with the manufacturer's specifications.","No",1,0,{"$f":"D754*E754","v":0}]
[]
["","SECTION NO. 2",{"$nulls":3},""]
[]
["","EXTERNAL WORKS",{"$nulls":3},""]
[]
["","BILL NO. 3",{"$nulls":3},""]
[]
["","REINSTATEMENT OF EXISTING ROADWORKS (PROVISIONAL)",{"$nulls":3},""]
[]
["","SUPPLEMENTARY PREAMBLES",{"$nulls":3},""]
[]
["","View site",{"$nulls":3},""]
[]
["","Before submitting his tender the tenderer shall visit the site and satisfy himself as to the nature and extent of the work to be done and the value of the materials contained in the buildings or portions of the buildings to be demolished. No claim for any variations of the contract sum in respect of the nature and extent of the work or of inferior or damaged materials will be entertained.","",null,null,""]
[]
["","General",{"$nulls":3},""]
[]
["","Water supply pipes and other piping in ground that may be encountered and found necessary to disconnect or cut, shall be effectually stopped off or grubbed up and removed, and any new connections that may be necessary shall be made with proper fittings to the satisfaction of the principal agent.","",null,null,""]
[]
["","Unless otherwise described all materials are to become the property of the contractor and are to be removed from the site.","",null,null,""]
[]
["","Any breaking up, breaking down, etc. and removal of existing work must be done with the greatest care to prevent any form of structural or other damage to work or items not due to be removed. If any such damage may occur it will be made good by the Contractor on his own expense.","",null,null,""]
[]
["","Filling and layer work materials",{"$nulls":3},""]
[]
["","References such as \"G1\", \"G2\", etc and \"C1\", \"C2\", etc in descriptions of filling and layer work materials refer to corresponding references in the document \"Guidelines for Road Construction Materials.  TRH 14 : 1985\" compiled by the Committee of State Road Authorities and the properties set out therein for each kind shall be applicable to the respective materials described hereinafter.","",null,null,""]
[]
["","Testing",{"$nulls":3},""]
[]
["","Prices for filling are to include for all necessary density and other tests.","",null,null,""]
[]
["","THE FOLLOWING IN ROADS AND PARKING AREAS ",{"$nulls":3},""]
[]
["","ALTERATIONS",{"$nulls":3},""]
[]
["","REMOVAL OF EXISTING WORK",{"$nulls":3},""]
[]
["","Saw cutting and removal of existing premix",{"$nulls":3},""]
[]
["1","40mm Thick premix in driveway","m",1100,0,{"$f":"D794*E794","v":0}]
[]
["","Breaking up and removing existing asphalt to an average depth of 40mm deep, including carting away off site ",{"$nulls":3},""]
[]
["2","40mm Thick premix in driveway","m2",952,0,{"$f":"D798*E798","v":0}]
[]
["","CAREFULLY TAKE OUT / OFF AND SET ASIDE FOR RE-USE AND RE-FIX INCLUDING MAKING GOOD",{"$nulls":3},""]
[]
["","Taking out and removing existing block pavers along road crossings, setting aside and store for re-use",{"$nulls":3},""]
[]
["3","80mm Thick concrete pavers along road crossings","m2",244,0,{"$f":"D804*E804","v":0}]
[]
["","EXCAVATION, FILLING, ETC. OTHER THAN BULK",{"$nulls":3},""]
[]
["","EXCAVATIONS",{"$nulls":3},""]
[]
["","Excavation in earth not exceeding 2m deep",{"$nulls":3},""]
[]
["4","To reduce levels under roads , paving and parking areas etc.","m3",2067,0,{"$f":"D812*E812","v":0}]
[]
["","Extra over excavations in earth for excavation in",{"$nulls":3},""]
[]
["5","Soft rock","m3",103,0,{"$f":"D816*E816","v":0}]
[]
["6","Hard rock","m3",207,0,{"$f":"D818*E818","v":0}]
[]
["","Extra over all excavations for carting away",{"$nulls":3},""]
[]
["7","Surplus material from excavations and/or stock piles on site, to a dumping site to be located by the contractor","m3",1199,0,{"$f":"D822*E822","v":0}]
[]
["","Keeping excavations free of water",{"$nulls":3},""]
[]
["8","Keeping excavations free of all water other than subterranean water","Item",{"v":1,"d":"1.00"},0,{"$f":"D826*E826","v":0}]
[]
["","FILLING, ETC.",{"$nulls":3},""]
[]
["","Selected earth filling obtained from excavations and/or from prescribed stock piles on site",{"$nulls":3},""]
[]
["9","Under roads and parking areas in maximum 200mm thick layers, compacted to 93% Mod AASHTO Density","m3",531,0,{"$f":"D832*E832","v":0}]
[]
["10","Under paved areas in maximum 200mm thick layers, compacted to 93% Mod AASHTO Density","m3",337,0,{"$f":"D834*E834","v":0}]
[]
["","LAYER WORK",{"$nulls":3},""]
[]
["","Approved filling supplied by the contractor under parking areas, roadways, etc.",{"$nulls":3},""]
[]
["11","G2 natural gravel material in base course, compacted to 100% Mod AASHTO density in layers not exceeding 150mm","m3",359,0,{"$f":"D840*E840","v":0}]
[]
["","WEED KILLER, INSECTICIDE, ETC.",{"$nulls":3},""]
[]
["","Soil poisoning in accordance to SANS 5859",{"$nulls":3},""]
[]
["12","Under paving areas etc, including forming and poisoning shallow furrows against foundation walls etc, filling in furrows and ramming","m2",1195,0,{"$f":"D846*E846","v":0}]
[]
["","TESTS",{"$nulls":3},""]
[]
["","Prescribed tests to determine degree of compaction or other properties of ground or filling specifically requested by the Civil Engineer",{"$nulls":3},""]
[]
["13","\"Modified AASHTO Density\" test","No",3,0,{"$f":"D852*E852","v":0}]
[]
["14","\"Field Density\" test, including \"Optimum Moisture Content\" test (four readings per test)","No",3,0,{"$f":"D854*E854","v":0}]
[]
["","ASPHALT BASE AND SURFACING",{"$nulls":3},""]
[]
["","Bituminous premix road surfacing",{"$nulls":3},""]
[]
["15","40mm Thick minimum continuously rolled SA-S10 level 1B premix surfacing to parking areas, roadways, etc including bitumen spray to base course","m2",952,0,{"$f":"D860*E860","v":0}]
[]
["","Surface Treatment",{"$nulls":3},""]
[]
["16","Tack coat under 40mm thick finalised asphalt layer (0.3L/m2)","m2",952,0,{"$f":"D864*E864","v":0}]
[]
["17","Tack coat on edge of 40mm thick finalised asphalt layer and existing material (0.3L/m2) between new and existing asphalt roadways including bitumen sealant at joints","m2",55,0,{"$f":"D866*E866","v":0}]
[]
["","PAVING, ETC.",{"$nulls":3},""]
[]
["","Reinstate 80mm Thick concrete interlocking paving blocks, laid on 20mm river sand bed with dry filler of cement and sand swept and vibrated into joints, including preparation of ground and filling including compaction and levelling",{"$nulls":3},""]
[]
["18","Paving laid to falls","m2",244,0,{"$f":"D872*E872","v":0}]
[]
["","SECTION NO. 2",{"$nulls":3},""]
[]
["","EXTERNAL WORKS",{"$nulls":3},""]
[]
["","BILL NO. 4",{"$nulls":3},""]
[]
["","REFURBISHMENT OF GUARD HOUSE / SECURITY ENTRANCE GATE ROOF (PROVISIONAL)  (ALL TRADES BILL)",{"$nulls":3},""]
[]
["","SUPPLEMENTARY PREAMBLES",{"$nulls":3},""]
[]
["","The Tenderer is referred to the relevant Clauses in the separate document Model Preambles for Trades (2017 Edition).","",null,null,""]
[]
["","ALTERATIONS (PROVISIONAL)",{"$nulls":3},""]
[]
["","Work and materials",{"$nulls":3},""]
[]
["","The work to be done and the materials to be used in the works on site are to be similar to those specified in the new work so as they apply.","",null,null,""]
[]
["","Old materials",{"$nulls":3},""]
[]
["","Old materials specified to be set aside for re-use are to be carefully removed, dismantled as necessary, cleaned, stored, protected from weather and injury, repaired, overhauled and made good before re fixing.Old materials specified to be handed over are to be carefully made good and stored on the site where directed.","",null,null,""]
[]
["","Demolitions",{"$nulls":3},""]
[]
["","All demolition work is to be carried out in accordance with the Local by-laws and to the requirements of the Local Health Authorities.  All demolition is to be carried out in strict accordance with the instructions and to the satisfaction of the Principal Agent.","",null,null,""]
[]
["","Temporary coverings, screens, etc.",{"$nulls":3},""]
[]
["","The Contractor will be held responsible for any damage to property or goods in the existing buildings due to his not having taken adequate precautions and all damage caused is to be made good at his own expense.  He must allow for providing all necessary plastic or wood framed screens, partitions, tarpaulins, barriers, etc. to protect the work and prevent any nuisance from dust as may be required or directed.","",null,null,""]
[]
["","Damage to persons or property",{"$nulls":3},""]
[]
["","The Contractor will be held responsible for any damage to persons and property and for the safety of the structures and he is to allow for protecting and indemnifying persons using the existing buildings from injury by virtue of the building operations, including providing necessary barriers, signs, etc.","",null,null,""]
[]
["","Making good",{"$nulls":3},""]
[]
["","Prices of all works described throughout these Bills of Quantities are to include for making good, whether specifically mentioned or not in all trades except painting, unless otherwise described.","",null,null,""]
[]
["","The Contractor must make good to existing work damaged or disturbed through alterations and to existing work remaining after doors, windows, screens, fittings, walls, etc. are removed, by fitting in short lengths of skirting, architrave's, etc. and taking out and making good suspended ceilings and floors on necessary joists, etc. plaster finishing to walls and ceilings and rendering, floor tiles, etc. to floors and for facing up walls with brickwork cut, toothed and bonded to existing with facing bricks, quarry tiles or common brickwork to receive finishing, unless otherwise described.","",null,null,""]
[]
["","All new materials in making good are to match existing and the work is to be left complete and perfect in every respect.","",null,null,""]
[]
["","Junction of new and existing",{"$nulls":3},""]
[]
["","Making good at junctions of new and existing work is to include for piecing out, cutting through and removing short lengths of existing material, for supplying short lengths of new material and for jointing to match existing.","",null,null,""]
[]
["","Asbestos cement",{"$nulls":3},""]
[]
["","All preparatory work, alterations, demolitions, etc. to existing asbestos cement roof sheeting, gutters, rainwater pipes, etc. are to be carried out strictly in accordance with statutory requirements (Occupational Health and Safety Act, 1993 - Asbestos Regulations, 2001) and all necessary precautions must be taken when working with and disposing of asbestos cement products and the disposing of waste resulting from cleaning operations, etc.","",null,null,""]
[]
["","General",{"$nulls":3},""]
[]
["","The Contractor shall carry out the whole of the works with as little mess and noise as possible and with a minimum of disturbance to adjoining premises and their tenants.  He shall provide proper protection and provide, erect and remove when directed, any temporary tarpaulins that may be necessary during the progress of the works, all to the satisfaction of the principal agent.","",null,null,""]
[]
["","Water supply pipes and other piping that may be encountered and found necessary to disconnect or cut, shall be effectually stopped off or grubbed up and removed, and any new connections that may be necessary shall be made with proper fittings, to the satisfaction of the principal agent.","",null,null,""]
[]
["","The Contractor is to keep accurate records for the removal of all items measured under this section. Where buildings, walls, etc. are demolished, photographs must be taken and kept as records, should discrepancies later arise when claims are made.","",null,null,""]
[]
["","Rates to include for all waste skips and removal of all rubble to dumpsite identified by the contractor","",null,null,""]
[]
["","REMOVAL OF EXISTING WORK",{"$nulls":3},""]
[]
["","Taking down and removing roofs, floors, panelling, ceilings, partitions and carting away off site.",{"$nulls":3},""]
[]
["1","Damaged roof sheeting material, etc, complete and cart away offsite.","m2",293,0,{"$f":"D938*E938","v":0}]
[]
["","Taking down and removing roofs, floors, panelling ceilings, partitions, etc completely (new work elsewhere measured) including carting away",{"$nulls":3},""]
[]
["2","Fibre cement ceilings including cover strips, cornices, timber branding, etc. ","m2",170,0,{"$f":"D942*E942","v":0}]
[]
["","Hacking up/off and removing waterproofing and preparing surfaces for new screeds, waterproofing,  plaster, etc. (elsewhere measured)",{"$nulls":3},""]
[]
["3","Torch-on waterproofing membrane covering on concrete box gutters including preparation of surfaces to receive new waterproofing (elsewhere measured) ","m2",16,0,{"$f":"D946*E946","v":0}]
[]
["4","Torch-on waterproofing membrane covering on existing parapet walls including preparation of surfaces to receive new waterproofing (elsewhere measured) ","m2",18,0,{"$f":"D948*E948","v":0}]
[]
["5","Torch-on waterproofing membrane covering on beams, including preparation of surfaces to receive new waterproofing and plaster (elsewhere measured) ","m2",45,0,{"$f":"D950*E950","v":0}]
[]
["","WATERPROOFING  (PROVISIONAL)",{"$nulls":3},""]
[]
["","SUPPLEMENTARY PREAMBLES",{"$nulls":3},""]
[]
["","The Tenderer is referred to the relevant Clauses in the separate document Model Preambles for Trades (2017 Edition)","",null,null,""]
[]
["","Waterproofing of roofs, etc., shall be laid under a ten year written guarantee. Waterproofing to roofs shall be laid to even falls to outlets, etc., with necessary ridges, hips and valleys. Descriptions of membrane waterproofing shall be deemed to include additional labour to turn-ups and turn-downs","",null,null,""]
[]
["","Waterproofing generally to comply with SANS 10021 as applicable","",null,null,""]
[]
["","On completion of the waterproofing installation the contractor is to seal all outlets and flood test the waterproofed area. The area must be certified to the approval of the Principal Agent that it was handed over in a water-tight condition","",null,null,""]
[]
["","The waterproofing must be laid by a manufacturer/supplier approved applicator and the Contractor is to provide a ten (10) year guarantee certificate on final completion","",null,null,""]
[]
["","WATERPROOFING TO ROOFS, BASEMENTS, ETC.",{"$nulls":3},""]
[]
["","One layer DERBIGUM SP4 or equal and approved waterproofing membrane, with 75mm side laps and 100mm end laps, sealed to primed surfaces to falls and crossfalls by torchfusion, all in accordance with the manufacturer's specifications",{"$nulls":3},""]
[]
["","Note: Waterproofing is to be installed by a manufacturer/supplier accredited installer, subject to a 10 year maintenance and material guarantee. ",{"$nulls":3},""]
[]
["6","On parapet walls","m2",18,0,{"$f":"D972*E972","v":0}]
[]
["7","In concrete box gutters","m2",16,0,{"$f":"D974*E974","v":0}]
[]
["","Sundries",{"$nulls":3},""]
[]
["8","50 x 50mm triangular fillet","m",26,0,{"$f":"D978*E978","v":0}]
[]
["","One layer DERBIGUM SP3 or equal and approved waterproofing membrane, with 75mm side laps and 100mm end laps, sealed to primed surfaces to falls and crossfalls by torchfusion, all in accordance with the manufacturer's specifications",{"$nulls":3},""]
[]
["","Note: Waterproofing is to be installed by a manufacturer/supplier accredited installer, subject to a 10 year maintenance and material guarantee. ",{"$nulls":3},""]
[]
["9","On beams","m2",45,0,{"$f":"D984*E984","v":0}]
[]
["","ROOF COVERINGS (PROVISIONAL)",{"$nulls":3},""]
[]
["","The Tenderer is referred to the relevant Clauses in the separate document Model Preambles for Trades (2017 Edition)","",null,null,""]
[]
["","Note: The replacement of any roof sheeting is subject to the Principal Agent's written approval","",null,null,""]
[]
["","PROFILED METAL SHEETING AND ACCESSORIES",{"$nulls":3},""]
[]
["","Global Roofing Solutions or equal and approved 0.53mm thick 700mm cover Klip-Tite profile Zincalume AZ150 spelter G550 pre-coated roof sheeting, colour both sides to be determined on site (standard colours will be considered), or other equal and approved to match existing, fixed to existing steel purlins at maximum 2300mm centres and eaves and ridge purlins at maximum 1900mm centres (final spacing to be calculated by an Engineer) using KL700 plus clips fixed with 16 x 16mm long self-drilling wafer head PH2 screws, drill point fasteners (fastener lengths may vary depending on the insulation used or requirements), installed as per manufacturer's specifications and recommendations, by an approved installer",{"$nulls":3},""]
[]
["10","Roof covering with pitch not exceeding 25 degrees","m2",293,0,{"$f":"D996*E996","v":0}]
[]
["","Global Roofing Solutions or equal and approved 0.47mm thick 762mm cover COLORPLUS® corrugated profile AZ150 spelter G550 precoated roof sheeting (color: Seaspray finish topcoat and Cool Grey backing coat), fixed to existing timber intermediate purlins/brandering at max 1200mm centres and eaves and ridge purlins at max 1200mm centres (final spacing to be calculated by an Engineer) using Hex Flange Head + EPDM Seal self-drilling Type 17 drill point, No. 12-11 x 65mm long fasteners (fastener lengths may vary depending on the insulation used or requirements). Purlin/brandering fixed to first, fourth and eighth crest of each sheet and at all crests at sheet ends, installed as per manufacturer's specifications and recommendations, by an approved installer",{"$nulls":3},""]
[]
["11","Roof covering fixed to underside of rafters/purlins acting as ceiling","m2",170,0,{"$f":"D1000*E1000","v":0}]
[]
["","SHEET METAL FLASHINGS, LININGS, COPINGS, ETC.",{"$nulls":3},""]
[]
["","1.2mm Thick purpose made pre-coated zinc aluminium flashings, flute closers and all accessories to match roof sheeting, with all lapping of sheets only permitted with the approval of the Principal Agent including two continuous strips of butyl tape, installed according to manufacturers instructions",{"$nulls":3},""]
[]
["12","Head wall flashing, approximately 375 mm girth, two times bent, including fixings","m",26,0,{"$f":"D1006*E1006","v":0}]
[]
["13","Side wall flashing, approximately 656mm girth, three times bent, including fixings","m",21,0,{"$f":"D1008*E1008","v":0}]
[]
["14","Klip-tite pattern polyclosures to match sheeting profile","m",26,0,{"$f":"D1010*E1010","v":0}]
[]
["","1.2mm Thick purpose made galvanised steel flashings, flute closers and all accessories to match roof sheeting, installed according to manufacturers instructions",{"$nulls":3},""]
[]
["15","Head wall flashing, approximately 375 mm girth, two times bent, including fixings","m",73,0,{"$f":"D1014*E1014","v":0}]
[]
["","ROOF AND WALL INSULATION",{"$nulls":3},""]
[]
["","\"Sisalation 420\" or other equal and approved heavy industrial grade aluminium foil based insulation, all in accordance with the manufacturer`s specifications and recommendations",{"$nulls":3},""]
[]
["16","Insulation laid on undersides of roof sheeting on 1.6mm galvanized tensioned support wires and fixed on existing purlins","m2",293,0,{"$f":"D1020*E1020","v":0}]
[]
["","PLASTERING (PROVISIONAL) ",{"$nulls":3},""]
[]
["","The Tenderer is referred to the relevant Clauses in the separate document Model Preambles for Trades (2017 Edition)","",null,null,""]
[]
["","SCREEDS",{"$nulls":3},""]
[]
["","Note: Removal and reinstatement of screeds to receive waterproofing (allowed elsewhere) must be approved, in writing, by the Principal Agent."]
[]
["17","On concrete box gutters, floors, etc. laid to fall","m2",20,0,{"$f":"D1030*E1030","v":0}]
[]
["","EXTERNAL PLASTER",{"$nulls":3},""]
[]
["18","On parapet walls","m2",45,0,{"$f":"D1034*E1034","v":0}]
[]
["","Sundries",{"$nulls":3},""]
[]
["19","Average 50 x 50 mm triangular screed fillet applied to existing vertical and horizontal surfaces to receive waterproofing (elsewhere measured) ","m",26,0,{"$f":"D1038*E1038","v":0}]
[]
["","BUDGETARY ALLOWANCES",{"$nulls":3},""]
[]
["","Note: The tenderers are to note that the provisional allowances listed hereunder are for work to be executed by the appointed principal contractor. Tenderers are to allow in their overall Preliminary allowance for this scope of work as no additional Preliminaries will be entertained once this scope of work is realised. The employer reserves the right to execute this work in part or in whole or omit the entire scope.","",null,null,""]
[]
["","CCTV INVESTIGATION OF EXISTING STORMWATER DOWNPIPES",{"$nulls":3},""]
[]
["20","Provide the sum of R 50 000.00 (Fifty Thousand Rand) for CCTV Investigation of Existing Stormwater Downpipes","Item",1,{"v":50000,"d":"R50,000.00"},{"$f":"D1046*E1046","v":{"v":50000,"d":"R50,000.00"}}]
[]
["21","Profit","Item",1,0,{"$f":"D1048*E1048","v":0}]
[]
["22","Attendance","Item",1,0,{"$f":"D1050*E1050","v":0}]
[]
["","NEW PURLINS",{"$nulls":3},""]
[]
["23","Provide the sum of R 30,000.00 (Thirty Thousand Rand) for Supply and Installation of New Purlins","Item",1,{"v":30000,"d":"R30,000.00"},{"$f":"D1054*E1054","v":{"v":30000,"d":"R30,000.00"}}]
[]
["24","Profit","Item",1,0,{"$f":"D1056*E1056","v":0}]
[]
["25","Attendance","Item",1,0,{"$f":"D1058*E1058","v":0}]
[]
["","ELECTRICAL INSTALLATION (PROVISIONAL)",{"$nulls":3},""]
[]
["","GENERAL NOTES",{"$nulls":3},""]
[]
["","This Bill of Quantities forms part of, and must be read in conjunction with the complete specification and must be submitted, duly completed, on the closing date of tenders.Tenderers must complete the Bill of Quantities and detail the unit rate and total amount of each item.The \"Total\" shall constitute the tender price for adjudication.Tenderers are advised to check their item extension and total additions as arithmetical errors occurring in the priced Bill of Quantities cannot be considered as having an effect on the tender amount.No alteration, erasure or addition is to be made in the text of the Bill of Quantities.  Should any alteration, erasure or addition be made it will not be recognised but the original wording of the Bill of Quantities will be adhered to.The Engineer will check the completed Bill of Quantities and reserves the right to adjust any individual price and to rectify any discrepancy whilst the total tender price as quoted remains unaltered.The quantities given in the Bill for cable, cable markers, earth wire laid with cable, overhead conductors, overhead earth wire and excavations cannot be regarded as exact and are subject to measurement on site after completion of the service and adjustments will be made according to the unit rates given in the Bill.All other quantities will not be measured on site.In the event of discrepancies between the drawings, specifications and Bill of Quantities the Engineer shall decide whether the work as executed shall be remeasured on site or whether remeasurement shall be effected from the working drawings only.","",null,null,""]
[null,"The Bill of Quantities is to be used for pricing and financial purposes only.  The drawings take precedence over the particular (project) specification but should be used in conjunction with these specifications.  The Project Specification takes precedence over quality specifications and the Bill of Quantities.NOTE:Checking of Cable and Overhead Conductor Lengths. Notwithstanding the fact that lengths of cables and overhead conductors, as given in the Bill of Quantities, have been measured from scaled drawings, the Contractor shall check such lengths on site before ordering the cable as he will not be paid for excess cable after the completion of the service.  Any allowance for off-cuts shall be made in the unit rates.  The final measurements shall be based on the nett route length of the cables and overhead lines concerned. installed in accordance with the specification. However, the onus is on the Contractor to prove compliance with the specification.The unit prices quoted in the Bill of Quantities shall include for such small materials as are required for the complete installation in accordance with the specification.Bill No. 1 is to be regarded as fixed and will not be adjusted for variations in the final contract value or contract period.NOTE:Tenderers may not include the costs of the items of Bill No. 1 in the unit rates for items in the remainder of the Bill of Quantities.  Bill No. 1 is to be completed as indicated.Failure to comply will result in the Engineer arbitrarily adjusting rates to exclude Preliminary and General Costs."]
[null,"Unit prices for the same items in different Bills shall in all cases be the same, and in the case of differences, the Engineer reserves the right to change such unit prices when the completed list is checked, without adjusting the tender price.The total for each page of each Bill is to be carried forward to the collection page at the end of each Bill.P.C., Provisional and Contingency allowances, items and sums shall be expended as directed by the Engineer, and any balance remaining shall be deducted from the amount of the contract sum.Tenderers may not regard any unspent moneys as forming part of the final contract value.Variation Instruction No. 1 will be issued after award of the contract to omit all P.C., Provisional and Contingency sums/allowances from the contract and authorized contract value.Variation work, as well as the items described above, shall be measured as executed, and paid for according to unit prices in the Bill of Quantities.  Where unit prices are not available, the work shall be priced, in conjunction with the Engineer, at current rates."]
[null,"Unless otherwise specified in the Bill of Quantities, all items are to be priced on the basis of supply, delivery, offload, installation, connection, testing and commissioning.All prices are to be EXCLUSIVE OF VAT but inclusive of import duties,  surcharges, commissions to third parties, etc., where applicable.  The  foregoing items, as well as the Contractor's handling, financing and  profit mark-up, is not to be separately detailed, and must be included in  the cost rates.Unless otherwise stated, all measurements are net, in accordance with the drawings, and no allowance has been made for wastage.The Employer reserves the right to increase or decrease the extent of the contract works, without restraint, on total value of variations issued relevant to any particular item in the Bill of Quantities, by issuing written variation instructions to omit or add, as may be  required, the supply and/or installation of any item of equipment or  work, whether listed in the Bill of Quantities or not, and without affecting the unit cost rates indicated in the Bill of Quantities or Preliminary and General items.In the event that Tenderers disagree with the measured quantities the tender should be qualified accordingly, listing the items and quantities in question.The unit prices quoted in the Bill of Quantities must include for small installation materials such as nuts, bolts, nails, saddles, screws etc.  as are required for the satisfactory complete installation in accordance with the specification.Unless otherwise stated in the Bill, the unit cost rates shall be based on the following:"]
[null,"The rate for conduit boxes and for outlet boxes up to and including  100 x 100 mm shall be the same regardless of the number of entries.The rate for conduit and outlet boxes shall include for fixing to the conduit with lock and bushnuts as may be required and for fixing to the building structure.The rate for outlet boxes shall be without covers and draw boxes shall be complete with covers and screws.The rate for industrial switch and plug units shall include for the relevant enclosure and fixing to conduit and building structure.The rate for light switches, switch plugs, dimmer units, etc., shall include for screws, cover plates and fuses/breakers where applicable and for connection of wiring thereto.The rate for conduit up to and including 25 mm diameter shall include all couplings, bends, boxes, etc. as may be required.The rate for luminaries and accessories shall include for connection of the wiring thereto.All measurements are based on the most economical route lengths without any allowance for wastage, threading, jointing or slack. In the case of wiring in conduit, an allowance of 300 mm per wire outlet box position has been made and in the case of cables and wiring entering switchboards, an allowance of 1000 and  2000 mm has been made for termination purposes in sub-distribution and main distribution boards respectively.It should be noted that, notwithstanding anything to the contrary, any items completed or listed in the Bill of Quantities by the Tenderer will not be taken into account, will not be subject to re-measurement, and will not be regarded as a Bill of Quantities item."]
[null,"Where equipment is specified by name, the tenderer must price on this basis.  Alternatives may be offered by Tenderers but the use of which is subject to written approval by the Engineer."]
[]
["","PRELIMINARIES AND GENERAL",{"$nulls":3},""]
[]
["","The costs for the following items shall not be included in the cost rates for work listed in the rest of the Bill of Quantities.",{"$nulls":3},""]
[]
["26","Cost for compliance with Main Contractor's preliminary and  general items not covered below.","Item",1,0,{"$f":"D1075*E1075","v":0}]
[]
["27","Contractual requirements as specified, i.e. guarantees, insurance, sureties, company's overheads administration etc.","Item",1,0,{"$f":"D1077*E1077","v":0}]
[]
["28","Contract engineer, administration, supervision, programming and management.","Item",1,0,{"$f":"D1079*E1079","v":0}]
[]
["29","Establish site accommodation, storage etc.","Item",1,0,{"$f":"D1081*E1081","v":0}]
[]
["30","Maintain and operate site establishment.","Item",1,0,{"$f":"D1083*E1083","v":0}]
[]
["31","Remove site establishment on completion and remove all rubbish, foundations, concrete bases, dirt  oil spillage, etc, and leave site  in condition as found.","Item",1,0,{"$f":"D1085*E1085","v":0}]
[]
["32","Tools, equipment, plant hire and testing gear/meters as necessary.","Item",1,0,{"$f":"D1087*E1087","v":0}]
[]
["33","Guarantee and maintenance for the complete Electrical Installation including fittings, materials and workmanship for a period of TWELVE MONTHS after date of completion and handover.","Item",1,0,{"$f":"D1089*E1089","v":0}]
[]
["34","Allow for testing and commissioning the whole of the electrical installation as laid down in the specification and for re-testing as may be required after the making good of all defective work to the satisfaction of the Engineer","Item",1,0,{"$f":"D1091*E1091","v":0}]
[]
["35","3 sets of as built drawings showing all conduit routes, draw boxes and positions of outlets etc.","Item",1,0,{"$f":"D1093*E1093","v":0}]
[]
["36","Provision for final testing and Certificate of Compliance to be issued on completion of the project in addition to the detailed testing specified.","Item",1,0,{"$f":"D1095*E1095","v":0}]
[]
["","GENERAL ITEMS",{"$nulls":3},""]
[]
["37","Allow to liase with I.T. personnel to for access control and IT and T.","Item",1,0,{"$f":"D1099*E1099","v":0}]
[]
["38","Trace and identify all circuits before de-energising distribution boards/circuits or equipment","Item",1,0,{"$f":"D1101*E1101","v":0}]
[]
["39","Allow for engraved labels to all light switches, switch socket outlets and isolators indicating the DB name and circuit numbers.","Item",1,0,{"$f":"D1103*E1103","v":0}]
[]
["40","Earth cable trays and ladders with 10 mm² Cu PVC cable jumpers across joints, splices, elbows, tees etc.  ","Item",1,0,{"$f":"D1105*E1105","v":0}]
[]
["41","Liaison with various sub-contractors in regard to final building dimension, access routes, limiting sizes, constraint of equipment etc.","Item",1,0,{"$f":"D1107*E1107","v":0}]
[]
["42","Liaise with builder during construction of penetrations in concrete and brickwork to ensure they are formed in the correct positions","Item",1,0,{"$f":"D1109*E1109","v":0}]
[]
["43","Liaise with relevant sub-contractors in regard to cable entry requirements, phase rotation and control wiring connection facilities required and to be provided in each sub-contractors switchboard for use by the electrical contractor in connecting up","Item",1,0,{"$f":"D1111*E1111","v":0}]
[]
["44","Liaise with the builder during construction of recesses in concrete slabs, beams and columns to ensure they are formed in the correct positions","Item",1,0,{"$f":"D1113*E1113","v":0}]
[]
["","LABOUR RATES",{"$nulls":3},""]
[]
["45","Supervisor/Foreman","Hrs",5,0,{"$f":"D1117*E1117","v":0}]
[]
["46","Watchman","Hrs",5,0,{"$f":"D1119*E1119","v":0}]
[]
["47","Electrician","Hrs",5,0,{"$f":"D1121*E1121","v":0}]
[]
["48","Apprentice","Hrs",5,0,{"$f":"D1123*E1123","v":0}]
[]
["49","Cable Jointer","Hrs",5,0,{"$f":"D1125*E1125","v":0}]
[]
["50","Labourer","Hrs",5,0,{"$f":"D1127*E1127","v":0}]
[]
["51","Watchman","Hrs",5,0,{"$f":"D1129*E1129","v":0}]
[]
["","DISTRIBUTION BOARDS",{"$nulls":3},""]
[]
["","Supply and delivery of the following distribution boards ",{"$nulls":3},""]
[]
["52","'DB-GH As per single line diagram - Drawing No. 25024_409_0","No",1,0,{"$f":"D1135*E1135","v":0}]
[]
["","LV CABLING",{"$nulls":3},""]
[]
["","Supply the following 600/1000 Volt Cu PVC SWA PVC ECC cables;",{"$nulls":3},""]
[]
["53","16 mm² 4 core","m",10,0,{"$f":"D1141*E1141","v":0}]
[]
["54","10 mm² 4 core","m",15,0,{"$f":"D1143*E1143","v":0}]
[]
["55","6 mm² 4 core","m",21,0,{"$f":"D1145*E1145","v":0}]
[]
["56","16 mm² 2 core","m",18,0,{"$f":"D1147*E1147","v":0}]
[]
["57","10 mm² 2 core","m",23,0,{"$f":"D1149*E1149","v":0}]
[]
["58","6 mm² 2 core","m",8,0,{"$f":"D1151*E1151","v":0}]
[]
["","Extra on last to install in cable sleeve, ladder, tray, basket",{"$nulls":3},""]
[]
["59","16 mm² 4 core","m",10,0,{"$f":"D1155*E1155","v":0}]
[]
["60","10 mm² 4 core","m",15,0,{"$f":"D1157*E1157","v":0}]
[]
["61","6mm² 4 core","m",21,0,{"$f":"D1159*E1159","v":0}]
[]
["62","16 mm² 2 core","m",18,0,{"$f":"D1161*E1161","v":0}]
[]
["63","10 mm² 2 core","m",23,0,{"$f":"D1163*E1163","v":0}]
[]
["64"," 6 mm² 2 core","m",8,0,{"$f":"D1165*E1165","v":0}]
[]
["","Termination inclusive of cable glands, lugs etc.",{"$nulls":3},""]
[]
["65","16 mm² 4 core","No",2,0,{"$f":"D1169*E1169","v":0}]
[]
["66","10 mm² 4 core","No",2,0,{"$f":"D1171*E1171","v":0}]
[]
["67","6 mm² 4 core","No",2,0,{"$f":"D1173*E1173","v":0}]
[]
["","Supply and install Scotchcast cable joint for the following PVC SWA PVC ECC cables;",{"$nulls":3},""]
[]
["68","16 mm² 4 core","No",1,0,{"$f":"D1177*E1177","v":0}]
[]
["69","10 mm² 4 core","No",1,0,{"$f":"D1179*E1179","v":0}]
[]
["70","6 mm² 4 core","m",1,0,{"$f":"D1181*E1181","v":0}]
[]
["","WIRE-WAYS",{"$nulls":3},""]
[]
["","CABLE LADDERS",{"$nulls":3},""]
[]
["","The complete supply, transport to site, and storage of hot dipped  galvanised heavy duty cable ladder and offsets as required below:",{"$nulls":3},""]
[]
["71","150 mm wide","m",5,0,{"$f":"D1189*E1189","v":0}]
[]
["72","150 mm 90 degree bend","No",1,0,{"$f":"D1191*E1191","v":0}]
[]
["73","150 mm Tee piece","No",1,0,{"$f":"D1193*E1193","v":0}]
[]
["74","150 mm 4-way piece","No",1,0,{"$f":"D1195*E1195","v":0}]
[]
["75","150 mm riser piece","No",1,0,{"$f":"D1197*E1197","v":0}]
[]
["","Extra on last to install horizontally (trapeeze) or vertically (P1000 unistrut). Fixings at 1000mm. Installation is to include for all joiner splices, raw bolts and fixing cable ladder to unistrut with bolt fasteners complete with spring washer, fixing bolts etc.",{"$nulls":3},""]
[]
["76","150 mm wide","m",5,0,{"$f":"D1201*E1201","v":0}]
[]
["77","150 mm 90 degree bend","No",1,0,{"$f":"D1203*E1203","v":0}]
[]
["78","150 mm Tee piece","No",1,0,{"$f":"D1205*E1205","v":0}]
[]
["79","150 mm 4-way piece","No",1,0,{"$f":"D1207*E1207","v":0}]
[]
["80","150 mm riser piece","No",1,0,{"$f":"D1209*E1209","v":0}]
[]
["","CABLE BASKETS",{"$nulls":3},""]
[]
["","The complete supply, transport to site, and storage of hot dipped galvanised medium duty cable basket and offsets as required below:  ",{"$nulls":3},""]
[]
["81","150 mm wide","m",10,0,{"$f":"D1215*E1215","v":0}]
[]
["82","150 mm 90 degree bend","No",1,0,{"$f":"D1217*E1217","v":0}]
[]
["83","150 mm Tee piece","No",1,0,{"$f":"D1219*E1219","v":0}]
[]
["84","150 mm 4-way piece","No",1,0,{"$f":"D1221*E1221","v":0}]
[]
["85","150 mm riser piece","No",1,0,{"$f":"D1223*E1223","v":0}]
[]
["","Extra on last to install horizontally (trapeeze) or vertically (P1000 unistrut). Fixings at 1000mm. Installation is to include for all joiner splices, raw bolts and fixing cable basket to unistrut with bolt fasteners complete with spring washer, fixing bolts etc.",{"$nulls":3},""]
[]
["86","150 mm wide","m",10,0,{"$f":"D1227*E1227","v":0}]
[]
["87","150 mm 90 degree bend","No",1,0,{"$f":"D1229*E1229","v":0}]
[]
["88","150 mm Tee piece","No",1,0,{"$f":"D1231*E1231","v":0}]
[]
["89","150 mm 4-way piece","m",1,0,{"$f":"D1233*E1233","v":0}]
[]
["90","150 mm riser piece","No",1,0,{"$f":"D1235*E1235","v":0}]
[]
["","LIGHTING AND SMALL POWER ",{"$nulls":3},""]
[]
["","Supply and install the following:",{"$nulls":3},""]
[]
["","LIGHTING",{"$nulls":3},""]
[]
["91","25 mm PVC conduit surface mounted","m",95,0,{"$f":"D1243*E1243","v":0}]
[]
["92","25 mm PVC conduit cast-in to floor slab","m",30,0,{"$f":"D1245*E1245","v":0}]
[]
["93","25 mm PVC conduit in partition wall / brickwork","m",50,0,{"$f":"D1247*E1247","v":0}]
[]
["","PVC insulated 1 000 V grade hard drawn copper wire drawn into trunking/conduit and coloured as per phase",{"$nulls":3},""]
[]
["94","2.5 mm²","m",255,0,{"$f":"D1251*E1251","v":0}]
[]
["95","2,5 mm² PVC insulated surfix cable","m",20,0,{"$f":"D1253*E1253","v":0}]
[]
["96","Extra on last to terminate inclusive of glands etc.","No",6,0,{"$f":"D1255*E1255","v":0}]
[]
["97","Single lever 1 way 16 amp Crabtree classic or equal and approved light switch in 100 x 50/50 galvanised box inclusive of cover","No",2,0,{"$f":"D1257*E1257","v":0}]
[]
["98","1 lever 2 way 16 amp Crabtree classic or equal approved light switch or other in 100 x 50/50 galvanised box inclusive of cover","No",1,0,{"$f":"D1259*E1259","v":0}]
[]
["99"," 6 amp unswitched socket outlet","No",12,0,{"$f":"D1261*E1261","v":0}]
[]
["100","65mm PVC round box for 25mm conduit","No",8,0,{"$f":"D1263*E1263","v":0}]
[]
["101","65mm 3 way PVC round draw box","No",4,0,{"$f":"D1265*E1265","v":0}]
[]
["102","20A Photocell inclusive of bulkhead enclosure","No",4,0,{"$f":"D1267*E1267","v":0}]
[]
["103","Occupancy sensor - Luxomat (PD3-1C or equal) ceiling mounted, white with 360 degree detection angle","No",4,0,{"$f":"D1269*E1269","v":0}]
[]
["104","Supply and install P9000 trunking complete with cover plate to soffit","m",19,0,{"$f":"D1271*E1271","v":0}]
[]
["105","Supply and install P9000 crossover","No",2,0,{"$f":"D1273*E1273","v":0}]
[]
["106","Supply and install P9000 elbow","No",1,0,{"$f":"D1275*E1275","v":0}]
[]
["107","Supply and install P9000 Tee-piece","No",1,0,{"$f":"D1277*E1277","v":0}]
[]
["108","Supply and install P9000 4-way piece","No",1,0,{"$f":"D1279*E1279","v":0}]
[]
["109","Supply and install P9000 end caps","No",1,0,{"$f":"D1281*E1281","v":0}]
[]
["","SMALL POWER",{"$nulls":3},""]
[]
["110","25 mm PVC conduit surface mounted","m",46,0,{"$f":"D1285*E1285","v":0}]
[]
["111","25 mm PVC conduit cast-in to floor slab","m",12,0,{"$f":"D1287*E1287","v":0}]
[]
["112","25 mm PVC conduit in partition wall","m",17,0,{"$f":"D1289*E1289","v":0}]
[]
["113","32 mm PVC conduit surface mounted","m",12,0,{"$f":"D1291*E1291","v":0}]
[]
["114","32 mm PVC conduit cast-in to floor slab","m",5,0,{"$f":"D1293*E1293","v":0}]
[]
["115","32 mm PVC conduit in partition wall","m",9,0,{"$f":"D1295*E1295","v":0}]
[]
["","PVC insulated 1 000 V grade hard drawn copper wire drawn into trunking/conduit and coloured as per phase",{"$nulls":3},""]
[]
["116","2.5 mm²","m",415,0,{"$f":"D1299*E1299","v":0}]
[]
["117","4.0 mm²","m",91,0,{"$f":"D1301*E1301","v":0}]
[]
["118","6.0 mm²","m",24,0,{"$f":"D1303*E1303","v":0}]
[]
["119","2,5 mm² PVC insulated surfix cable","m",20,0,{"$f":"D1305*E1305","v":0}]
[]
["120","Extra on last to terminate inclusive of glands etc.","No",4,0,{"$f":"D1307*E1307","v":0}]
[]
["121","Supply and install single switch socket outlet, with euro outlet in 100x100/50 PVC conduit box (Crabtree classic or equal and approved","No",8,0,{"$f":"D1309*E1309","v":0}]
[]
["122","Supply and install 16A dedicated switch socket outlet,in 100x100/50 PVC conduit box (Crabtree classic or equal and approved) ","No",2,0,{"$f":"D1311*E1311","v":0}]
[]
["123","Supply and Install Two Compartment 2 cover, Epoxy Powder coated power skirting, surface mounted, inclusive of cover","m",15,0,{"$f":"D1313*E1313","v":0}]
[]
["124","Supply and install End caps","No",2,0,{"$f":"D1315*E1315","v":0}]
[]
["125","Supply and install 90° bends","No",2,0,{"$f":"D1317*E1317","v":0}]
[]
["126","Supply and Install 20A Three pin normal switch socket outlet in installed in power skirting","No",4,0,{"$f":"D1319*E1319","v":0}]
[]
["127","Supply and Install 20A Three pin euro switch socket outlet in installed in power skirting","No",4,0,{"$f":"D1321*E1321","v":0}]
[]
["128","Supply and Install 20A Three pin UPS dedicated switch socket outlet installed in power skirting","No",4,0,{"$f":"D1323*E1323","v":0}]
[]
["129","Supply and Install Krone RJ 45 data outlets installed in power skirting","No",4,0,{"$f":"D1325*E1325","v":0}]
[]
["130","100x50/50 PVC conduit boxes for AC controller","No",2,0,{"$f":"D1327*E1327","v":0}]
[]
["131","Supply and install P9000 trunking complete with cover plate to soffit","m",21,0,{"$f":"D1329*E1329","v":0}]
[]
["132","Supply and install P9000 crossover","No",1,0,{"$f":"D1331*E1331","v":0}]
[]
["133","Supply and install P9000 elbow","No",1,0,{"$f":"D1333*E1333","v":0}]
[]
["134","Supply and install P9000 Tee-piece","No",1,0,{"$f":"D1335*E1335","v":0}]
[]
["135","Supply and install P9000 4-way piece","No",1,0,{"$f":"D1337*E1337","v":0}]
[]
["136","Supply and install P9000 end caps","No",1,0,{"$f":"D1339*E1339","v":0}]
[]
["137","Supply and install 10A single phase isolator for extraction","No",1,0,{"$f":"D1341*E1341","v":0}]
[]
["138","Supply and install 20A single phase isolators for aircon supply","No",1,0,{"$f":"D1343*E1343","v":0}]
[]
["139","Supply and install 20A single phase isolators for hydroboil","No",1,0,{"$f":"D1345*E1345","v":0}]
[]
["140","Supply and install 20A single phase isolators for hand drier power supplies","No",1,0,{"$f":"D1347*E1347","v":0}]
[]
["141","300x300mm wide PVC junction box recessed in wall complete with cover","No",1,0,{"$f":"D1349*E1349","v":0}]
[]
["","LUMINAIRES",{"$nulls":3},""]
[]
["","Supply  the following luminaires, inclusive of lamps as per drawing No. 25024_601_A",{"$nulls":3},""]
[]
["142","Type A","No",10,0,{"$f":"D1355*E1355","v":0}]
[]
["143","Type B","No",8,0,{"$f":"D1357*E1357","v":0}]
[]
["144","Type Be","No",2,0,{"$f":"D1359*E1359","v":0}]
[]
["145","Type C","No",4,0,{"$f":"D1361*E1361","v":0}]
[]
["","Extra on last to install as per drawing No. 25024_601_A",{"$nulls":3},""]
[]
["146","Type A","No",10,0,{"$f":"D1365*E1365","v":0}]
[]
["147","Type B","No",8,0,{"$f":"D1367*E1367","v":0}]
[]
["148","Type Be","No",2,0,{"$f":"D1369*E1369","v":0}]
[]
["149","Type C","No",4,0,{"$f":"D1371*E1371","v":0}]
[]
["","EXISTING INSTALLATION",{"$nulls":3},""]
[]
["","Disconnect, make safe and remove the following;",{"$nulls":3},""]
[]
["150","Surface Fluorescent fitting","No",8,0,{"$f":"D1377*E1377","v":0}]
[]
["151","Bulkhead light fitting","No",8,0,{"$f":"D1379*E1379","v":0}]
[]
["152","Downlighters","No",2,0,{"$f":"D1381*E1381","v":0}]
[]
["153","Allow to remove surface mounted conduit","m",100,0,{"$f":"D1383*E1383","v":0}]
[]
["154","Allow to remove wiring","m",355,0,{"$f":"D1385*E1385","v":0}]
[]
["155","Allow to remove surface mounted switch socket outlets","No",4,0,{"$f":"D1387*E1387","v":0}]
[]
["156","Allow to remove recess mounted switch socket outlets","No",4,0,{"$f":"D1389*E1389","v":0}]
[]
["157","Allow to remove surface mounted light switches","No",4,0,{"$f":"D1391*E1391","v":0}]
[]
["158","Allow to remove power skirting","m",10,0,{"$f":"D1393*E1393","v":0}]
[]
["159","Allow to remove 25 mm conduit","m",21,0,{"$f":"D1395*E1395","v":0}]
[]
["160","Allow to remove 20 mm conduit","m",59,0,{"$f":"D1397*E1397","v":0}]
[]
["161","Allow to remove telephone conduiting","m",21,0,{"$f":"D1399*E1399","v":0}]
[]
["162","Allow to remove telephone jack point and install cover plate","m",4,0,{"$f":"D1401*E1401","v":0}]
[]
["163","Allow to dispose existing equipment and material removed from site and disposed off-site","Item",{"v":1,"d":"1.00"},0,{"$f":"D1403*E1403","v":0}]
[]
["164","Allow to remove all existing distribution boards","No",1,0,{"$f":"D1405*E1405","v":0}]
[]
[null,"EXTERNAL WORKS SUMMARY"]
[]
["1","Pump Room (Provisional)",{"$nulls":3},{"$f":"SUM(F250:F520)","v":{"v":50000,"d":"R50,000.00"}}]
[]
["2","External Water Supply (Provisional)",{"$nulls":3},{"$f":"SUM(F544:F754)","v":{"v":530000,"d":"R530,000.00"}}]
[]
["3","Reinstatement of Roadworks (Provisional)",{"$nulls":3},{"$f":"SUM(F794:F872)","v":0}]
[]
["4","Refurbishment of Guard House / Security Entrance Gate Roof",{"$nulls":3},{"$f":"SUM(F938:F1405)","v":{"v":80000,"d":"R80,000.00"}}]
[]
["","SECTION NO. 3",{"$nulls":3},""]
[]
["","BILL NO. 1",{"$nulls":3},""]
[]
["","ELECTRICAL INSTALLATION (PROVISIONAL)",{"$nulls":3},""]
[]
["","NOTES",{"$nulls":3},""]
["","This Bill of Quantities forms part of, and must be read in conjunction with the complete specification and must be submitted, duly completed, on the closing date of tenders.Tenderers must complete the Bill of Quantities and detail the unit rate and total amount of each item.The \"Total\" shall constitute the tender price for adjudication.Tenderers are advised to check their item extension and total additions as arithmetical errors occurring in the priced Bill of Quantities cannot be considered as having an effect on the tender amount.No alteration, erasure or addition is to be made in the text of the Bill of Quantities.  Should any alteration, erasure or addition be made it will not be recognised but the original wording of the Bill of Quantities will be adhered to.The Engineer will check the completed Bill of Quantities and reserves the right to adjust any individual price and to rectify any discrepancy whilst the total tender price as quoted remains unaltered.The quantities given in the Bill for cable, cable markers, earth wire laid with cable, overhead conductors, overhead earth wire and excavations cannot be regarded as exact and are subject to measurement on site after completion of the service and adjustments will be made according to the unit rates given in the Bill.All other quantities will not be measured on site.In the event of discrepancies between the drawings, specifications and Bill of Quantities the Engineer shall decide whether the work as executed shall be remeasured on site or whether remeasurement shall be effected from the working drawings only.","",null,null,""]
[null,"The Bill of Quantities is to be used for pricing and financial purposes only.  The drawings take precedence over the particular (project) specification but should be used in conjunction with these specifications.  The Project Specification takes precedence over quality specifications and the Bill of Quantities.NOTE:Checking of Cable and Overhead Conductor Lengths. Notwithstanding the fact that lengths of cables and overhead conductors, as given in the Bill of Quantities, have been measured from scaled drawings, the Contractor shall check such lengths on site before ordering the cable as he will not be paid for excess cable after the completion of the service.  Any allowance for off-cuts shall be made in the unit rates.  The final measurements shall be based on the nett route length of the cables and overhead lines concerned. installed in accordance with the specification. However, the onus is on the Contractor to prove compliance with the specification.The unit prices quoted in the Bill of Quantities shall include for such small materials as are required for the complete installation in accordance with the specification.Bill No. 1 is to be regarded as fixed and will not be adjusted for variations in the final contract value or contract period.NOTE:Tenderers may not include the costs of the items of Bill No. 1 in the unit rates for items in the remainder of the Bill of Quantities.  Bill No. 1 is to be completed as indicated.Failure to comply will result in the Engineer arbitrarily adjusting rates to exclude Preliminary and General Costs."]
[null,"Unit prices for the same items in different Bills shall in all cases be the same, and in the case of differences, the Engineer reserves the right to change such unit prices when the completed list is checked, without adjusting the tender price.The total for each page of each Bill is to be carried forward to the collection page at the end of each Bill.P.C., Provisional and Contingency allowances, items and sums shall be expended as directed by the Engineer, and any balance remaining shall be deducted from the amount of the contract sum.Tenderers may not regard any unspent moneys as forming part of the final contract value.Variation Instruction No. 1 will be issued after award of the contract to omit all P.C., Provisional and Contingency sums/allowances from the contract and authorized contract value.Variation work, as well as the items described above, shall be measured as executed, and paid for according to unit prices in the Bill of Quantities.  Where unit prices are not available, the work shall be priced, in conjunction with the Engineer, at current rates.Unless otherwise specified in the Bill of Quantities, all items are to be priced on the basis of supply, delivery, offload, installation, connection, testing and commissioning.All prices are to be EXCLUSIVE OF VAT but inclusive of import duties,  surcharges, commissions to third parties, etc., where applicable.  The  foregoing items, as well as the Contractor's handling, financing and  profit mark-up, is not to be separately detailed, and must be included in  the cost rates."]
[null,"Unless otherwise stated, all measurements are net, in accordance with the drawings, and no allowance has been made for wastage.The Employer reserves the right to increase or decrease the extent of the contract works, without restraint, on total value of variations issued relevant to any particular item in the Bill of Quantities, by issuing written variation instructions to omit or add, as may be  required, the supply and/or installation of any item of equipment or  work, whether listed in the Bill of Quantities or not, and without affecting the unit cost rates indicated in the Bill of Quantities or Preliminary and General items.In the event that Tenderers disagree with the measured quantities the tender should be qualified accordingly, listing the items and quantities in question.The unit prices quoted in the Bill of Quantities must include for small installation materials such as nuts, bolts, nails, saddles, screws etc.  as are required for the satisfactory complete installation in accordance with the specification.Unless otherwise stated in the Bill, the unit cost rates shall be based on the following:The rate for conduit boxes and for outlet boxes up to and including  100 x 100 mm shall be the same regardless of the number of entries."]
[null,"The rate for conduit and outlet boxes shall include for fixing to the conduit with lock and bushnuts as may be required and for fixing to the building structure.The rate for outlet boxes shall be without covers and draw boxes shall be complete with covers and screws.The rate for industrial switch and plug units shall include for the relevant enclosure and fixing to conduit and building structure.The rate for light switches, switch plugs, dimmer units, etc., shall include for screws, cover plates and fuses/breakers where applicable and for connection of wiring thereto.The rate for conduit up to and including 25 mm diameter shall include all couplings, bends, boxes, etc. as may be required.The rate for luminaries and accessories shall include for connection of the wiring thereto.All measurements are based on the most economical route lengths without any allowance for wastage, threading, jointing or slack. In the case of wiring in conduit, an allowance of 300 mm per wire outlet box position has been made and in the case of cables and wiring entering switchboards, an allowance of 1000 and  2000 mm has been made for termination purposes in sub-distribution and main distribution boards respectively.It should be noted that, notwithstanding anything to the contrary, any items completed or listed in the Bill of Quantities by the Tenderer will not be taken into account, will not be subject to re-measurement, and will not be regarded as a Bill of Quantities item.Where equipment is specified by name, the tenderer must price on this basis."]
[null,"  Alternatives may be offered by Tenderers but the use of which is subject to written approval by the Engineer."]
[]
["","PRELIMINARIES AND GENERAL",{"$nulls":3},""]
[]
["","The costs for the following items shall not be included in the cost rates for work listed in the rest of the Bill of Quantities.","",null,null,""]
[]
["1","Cost for compliance with Main Contractor's preliminary and general items not covered below","Item",1,0,{"$f":"D1435*E1435","v":0}]
[]
["2","Contractual requirements as specified, i.e. guarantees, insurance, sureties, company's overheads administration, etc.","Item",1,0,{"$f":"D1437*E1437","v":0}]
[]
["3","Contract engineer, administration, supervision, programming and management","Item",1,0,{"$f":"D1439*E1439","v":0}]
[]
["4","Establish site accommodation, storage, etc.","Item",1,0,{"$f":"D1441*E1441","v":0}]
[]
["5","Maintain and operate site establishment","Item",1,0,{"$f":"D1443*E1443","v":0}]
[]
["6","Remove site establishment on completion and remove all rubbish, foundations, concrete bases, dirt oil spillage, etc., and leave site in condition as found","Item",1,0,{"$f":"D1445*E1445","v":0}]
[]
["7","Tools, equipment, plant hire and testing gear/meters as necessary","Item",1,0,{"$f":"D1447*E1447","v":0}]
[]
["8","Guarantee and maintenance for the complete Electrical Installation including fittings, materials and workmanship for a period of TWELVE MONTHS after date of completion and handover","Item",1,0,{"$f":"D1449*E1449","v":0}]
[]
["9","Allow for testing and commissioning the whole of the electrical installation as laid down in the specification and for re-testing as may be required after the making good of all defective work to the satisfaction of the Engineer","Item",1,0,{"$f":"D1451*E1451","v":0}]
[]
["10","3 Sets of as built drawings showing all conduit routes, draw boxes and positions of outlets, etc.","Item",1,0,{"$f":"D1453*E1453","v":0}]
[]
["11","Provision for final testing and Certificate of Compliance to be issued on completion of the project in addition to the detailed testing specified","Item",1,0,{"$f":"D1455*E1455","v":0}]
[]
["","SECTION NO. 3",{"$nulls":3},""]
[]
["","BILL NO. 2",{"$nulls":3},""]
[]
["","ELECTRICAL INSTALLATION (PROVISIONAL)",{"$nulls":3},""]
[]
["","GENERAL ITEMS",{"$nulls":3},""]
[]
["1","Allow to liaise with I.T. personnel to for access control and IT and T.","Item",1,0,{"$f":"D1465*E1465","v":0}]
[]
["2","Trace and identify all circuits before de-energising distribution boards/circuits or equipment","Item",1,0,{"$f":"D1467*E1467","v":0}]
[]
["3","Allow for engraved labels to all light switches, switch socket outlets and isolators indicating the DB name and circuit numbers","Item",1,0,{"$f":"D1469*E1469","v":0}]
[]
["4","Earth cable trays and ladders with 10 mm² Cu PVC cable jumpers across joints, splices, elbows, tees, etc.  ","Item",1,0,{"$f":"D1471*E1471","v":0}]
[]
["5","Liaison with various sub-contractors in regard to final building dimension, access routes, limiting sizes, constraint of equipment, etc.","Item",1,0,{"$f":"D1473*E1473","v":0}]
[]
["6","Liaise with builder during construction of penetrations in concrete and brickwork to ensure they are formed in the correct positions","Item",1,0,{"$f":"D1475*E1475","v":0}]
[]
["7","Liaise with relevant sub-contractors in regard to cable entry requirements, phase rotation and control wiring connection facilities required and to be provided in each sub-contractors switchboard for use by the electrical contractor in connecting up","Item",1,0,{"$f":"D1477*E1477","v":0}]
[]
["8","Liaise with the builder during construction of recesses in concrete slabs, beams and columns to ensure they are formed in the correct positions","Item",1,0,{"$f":"D1479*E1479","v":0}]
[]
["","LABOUR RATES",{"$nulls":3},""]
[]
["9","Supervisor/Foreman","Hrs",5,0,{"$f":"D1483*E1483","v":0}]
[]
["10","Electrician","Hrs",10,0,{"$f":"D1485*E1485","v":0}]
[]
["11","Apprentice","Hrs",10,0,{"$f":"D1487*E1487","v":0}]
[]
["12","Cable Jointer","Hrs",10,0,{"$f":"D1489*E1489","v":0}]
[]
["13","Labourer","Hrs",15,0,{"$f":"D1491*E1491","v":0}]
[]
["14","Watchman","Hrs",10,0,{"$f":"D1493*E1493","v":0}]
[]
["","SECTION NO. 3",{"$nulls":3},""]
[]
["","BILL NO. 3",{"$nulls":3},""]
[]
["","ELECTRICAL INSTALLATION (PROVISIONAL)",{"$nulls":3},""]
[]
["","SITE RETICULATION",{"$nulls":3},""]
[]
["1","Excavate not exceeding 800mm deep in soft material for cabling and cable pipe trench including bedding, backfilling, compaction and disposal of surplus material","m3",94,0,{"$f":"D1503*E1503","v":0}]
[]
["2","Excavate not exceeding 800mm deep in intermediate rock material for cabling and cable pipe trench including bedding, backfilling, compaction and disposal of surplus material","m3",96,0,{"$f":"D1505*E1505","v":0}]
[]
["3","Excavate not exceeding 800mm deep in hard rock material for cabling and cable pipe trench including bedding, backfilling, compaction and disposal of surplus material","m3",97,0,{"$f":"D1507*E1507","v":0}]
[]
["","ELECTRICAL / TELEPHONE / DATA SLEEVES / ACCESS CONTROL",{"$nulls":3},""]
[]
["4","Supply and install 600 x 600 x 600mm manhole to specification complete with heavy duty manhole cover","No",5,0,{"$f":"D1511*E1511","v":0}]
[]
["5","Supply and install 800 x 800 x 800mm manhole to specification complete with heavy duty manhole cover","No",1,0,{"$f":"D1513*E1513","v":0}]
[]
["6","Supply and install 1000 x 1000 x 1000mm manhole to specification complete with heavy duty manhole cover","No",1,0,{"$f":"D1515*E1515","v":0}]
[]
["7","Concrete cable markers for LV cabling to the pump house","m",40,0,{"$f":"D1517*E1517","v":0}]
[]
["8","Danger tape for LV cabling to the pump house","m",800,0,{"$f":"D1519*E1519","v":0}]
[]
["","SECTION NO. 3",{"$nulls":3},""]
[]
["","BILL NO. 4",{"$nulls":3},""]
[]
["","ELECTRICAL INSTALLATION (PROVISIONAL)",{"$nulls":3},""]
[]
["","DISTRIBUTION BOARDS",{"$nulls":3},""]
[]
["","Supply and delivery of the following distribution boards",{"$nulls":3},""]
[]
["1","DB-2A (Second Floor) (Non-Essential) As per single line diagram - Drawing No. 25024_420_0","No",1,0,{"$f":"D1531*E1531","v":0}]
[]
["2","Extra on last to install","No",1,0,{"$f":"D1533*E1533","v":0}]
[]
["3","DB-2AE (Second Floor) (Essential) As per single line diagram - Drawing No. 25024_421_0","No",1,0,{"$f":"D1535*E1535","v":0}]
[]
["4","Extra on last to install","No",1,0,{"$f":"D1537*E1537","v":0}]
[]
["5","DB-2AU (Second Floor) (UPS) As per single line diagram - Drawing No. 25024_422_0","No",1,0,{"$f":"D1539*E1539","v":0}]
[]
["6","Extra on last to install","No",1,0,{"$f":"D1541*E1541","v":0}]
[]
["7","DB-2B (Second Floor) (Non-Essential) As per single line diagram - Drawing No. 25024_423_0","No",1,0,{"$f":"D1543*E1543","v":0}]
[]
["8","Extra on last to install","No",1,0,{"$f":"D1545*E1545","v":0}]
[]
["9","DB-2BE (Second Floor) (Essential) As per single line diagram - Drawing No. 25024_424_0","No",1,0,{"$f":"D1547*E1547","v":0}]
[]
["10","Extra on last to install","No",1,0,{"$f":"D1549*E1549","v":0}]
[]
["11","DB-2BU (Second Floor) (UPS) As per single line diagram - Drawing No. 25024_425_0","No",1,0,{"$f":"D1551*E1551","v":0}]
[]
["12","Extra on last to install","No",1,0,{"$f":"D1553*E1553","v":0}]
[]
["13","Budgetary allowance for Pump House Distribution Board","Item",1,{"v":40000,"d":"R40,000.00"},{"$f":"D1555*E1555","v":{"v":40000,"d":"R40,000.00"}}]
[]
["14","Budgetary allowance for remedial work to existing Main LV Panel","Item",1,{"v":250000,"d":"R250,000.00"},{"$f":"D1557*E1557","v":{"v":250000,"d":"R250,000.00"}}]
[]
["","SECTION NO. 3",{"$nulls":3},""]
[]
["","BILL NO. 5",{"$nulls":3},""]
[]
["","ELECTRICAL INSTALLATION (PROVISIONAL)",{"$nulls":3},""]
[]
["","L.V CABLING",{"$nulls":3},""]
[]
["","Supply the following 600/1000 Volt Cu PVC SWA PVC ECC cables;",{"$nulls":3},""]
[]
["1","95mm²  4 core","m",160,0,{"$f":"D1569*E1569","v":0}]
[]
["2","50 mm²  4 core","m",800,0,{"$f":"D1571*E1571","v":0}]
[]
["3","25 mm² 4 core","m",35,0,{"$f":"D1573*E1573","v":0}]
[]
["4","16 mm² 4 core","m",12,0,{"$f":"D1575*E1575","v":0}]
[]
["5","10 mm² 4 core","m",25,0,{"$f":"D1577*E1577","v":0}]
[]
["6","6 mm² 4 core","m",23,0,{"$f":"D1579*E1579","v":0}]
[]
["7","16 mm² 2 core","m",21,0,{"$f":"D1581*E1581","v":0}]
[]
["8","10 mm² 2 core","m",31,0,{"$f":"D1583*E1583","v":0}]
[]
["9","6 mm² 2 core","m",11,0,{"$f":"D1585*E1585","v":0}]
[]
["","Extra on last to install in cable sleeve, ladder, tray, basket",{"$nulls":3},""]
[]
["10","95mm²  4 core","m",160,0,{"$f":"D1589*E1589","v":0}]
[]
["11","50 mm²  4 core","m",800,0,{"$f":"D1591*E1591","v":0}]
[]
["12","25 mm² 4 core","m",35,0,{"$f":"D1593*E1593","v":0}]
[]
["13","16 mm² 4 core","m",12,0,{"$f":"D1595*E1595","v":0}]
[]
["14","10 mm² 4 core","m",25,0,{"$f":"D1597*E1597","v":0}]
[]
["15","6 mm² 4 core","m",23,0,{"$f":"D1599*E1599","v":0}]
[]
["16","16 mm² 2 core","m",21,0,{"$f":"D1601*E1601","v":0}]
[]
["17","10 mm² 2 core","m",31,0,{"$f":"D1603*E1603","v":0}]
[]
["18","6 mm² 2 core","m",11,0,{"$f":"D1605*E1605","v":0}]
[]
["","Termination inclusive of cable glands, lugs, etc.",{"$nulls":3},""]
[]
["19","95 mm²  4 core","m",4,0,{"$f":"D1609*E1609","v":0}]
[]
["20","50 mm²  4 core","m",2,0,{"$f":"D1611*E1611","v":0}]
[]
["21","25 mm² 4 core","m",2,0,{"$f":"D1613*E1613","v":0}]
[]
["22","16 mm² 4 core","m",2,0,{"$f":"D1615*E1615","v":0}]
[]
["23","10 mm² 4 core","m",2,0,{"$f":"D1617*E1617","v":0}]
[]
["24","6 mm² 4 core","m",2,0,{"$f":"D1619*E1619","v":0}]
[]
["25","16 mm² 2 core","m",2,0,{"$f":"D1621*E1621","v":0}]
[]
["26","10 mm² 2 core","m",2,0,{"$f":"D1623*E1623","v":0}]
[]
["27","6 mm² 2 core","m",2,0,{"$f":"D1625*E1625","v":0}]
[]
["","Supply and install Scotchcast cable joint for the following PVC SWA PVC ECC cables;",{"$nulls":3},""]
[]
["28","95mm²  4 core","m",1,0,{"$f":"D1629*E1629","v":0}]
[]
["29","50 mm²  4 core","m",1,0,{"$f":"D1631*E1631","v":0}]
[]
["30","35 mm²  4 core","m",1,0,{"$f":"D1633*E1633","v":0}]
[]
["31","25 mm² 4 core","m",1,0,{"$f":"D1635*E1635","v":0}]
[]
["32","16 mm² 4 core","m",1,0,{"$f":"D1637*E1637","v":0}]
[]
["33","10 mm² 2 core","m",1,0,{"$f":"D1639*E1639","v":0}]
[]
["","SECTION NO. 3",{"$nulls":3},""]
[]
["","BILL NO. 6",{"$nulls":3},""]
[]
["","ELECTRICAL INSTALLATION (PROVISIONAL)",{"$nulls":3},""]
[]
["","WIRE-WAYS",{"$nulls":3},""]
[]
["","CABLE LADDERS",{"$nulls":3},""]
[]
["","The complete supply, transport to site, and storage of hot dipped galvanised heavy duty cable ladder and offsets as required below:",{"$nulls":3},""]
[]
["1","150 mm Wide","m",100,0,{"$f":"D1653*E1653","v":0}]
[]
["2","150 mm 90 Degree bend","No",2,0,{"$f":"D1655*E1655","v":0}]
[]
["3","150 mm Tee piece","No",1,0,{"$f":"D1657*E1657","v":0}]
[]
["4","150 mm 4-Way piece","No",1,0,{"$f":"D1659*E1659","v":0}]
[]
["5","150 mm Riser piece","No",1,0,{"$f":"D1661*E1661","v":0}]
[]
["6","300 mm Wide","m",35,0,{"$f":"D1663*E1663","v":0}]
[]
["7","300 mm 90 Degree bend","No",1,0,{"$f":"D1665*E1665","v":0}]
[]
["8","300 mm Tee piece","No",1,0,{"$f":"D1667*E1667","v":0}]
[]
["9","300 mm 4-Way piece","No",1,0,{"$f":"D1669*E1669","v":0}]
[]
["10","300 mm Riser piece","No",1,0,{"$f":"D1671*E1671","v":0}]
[]
["","Extra on last to install horizontally (trapeze) or vertically (P1000 unistrut). Fixings at 1000mm. Installation is to include for all joiner splices, raw bolts and fixing cable ladder to unistrut with bolt fasteners complete with spring washer, fixing bolts etc.",{"$nulls":3},""]
[]
["11","150 mm Wide","m",100,0,{"$f":"D1675*E1675","v":0}]
[]
["12","150 mm 90 Degree bend","No",2,0,{"$f":"D1677*E1677","v":0}]
[]
["13","150 mm Tee piece","No",1,0,{"$f":"D1679*E1679","v":0}]
[]
["14","150 mm 4-Way piece","No",1,0,{"$f":"D1681*E1681","v":0}]
[]
["15","150 mm Riser piece","No",1,0,{"$f":"D1683*E1683","v":0}]
[]
["16","300 mm Wide","m",35,0,{"$f":"D1685*E1685","v":0}]
[]
["17","300 mm 90 Degree bend","No",1,0,{"$f":"D1687*E1687","v":0}]
[]
["18","300 mm Tee piece","No",1,0,{"$f":"D1689*E1689","v":0}]
[]
["19","300 mm 4-Way piece","No",1,0,{"$f":"D1691*E1691","v":0}]
[]
["20","300 mm Riser piece","No",1,0,{"$f":"D1693*E1693","v":0}]
[]
["","CABLE BASKETS",{"$nulls":3},""]
[]
["","The complete supply, transport to site, and storage of hot dipped galvanised medium duty cable basket and offsets as required below:",{"$nulls":3},""]
[]
["21","150 mm Wide","m",35,0,{"$f":"D1699*E1699","v":0}]
[]
["22","150 mm 90 Degree bend","No",1,0,{"$f":"D1701*E1701","v":0}]
[]
["23","150 mm Tee piece","No",1,0,{"$f":"D1703*E1703","v":0}]
[]
["24","150 mm 4-Way piece","No",1,0,{"$f":"D1705*E1705","v":0}]
[]
["25","150 mm Riser piece","No",1,0,{"$f":"D1707*E1707","v":0}]
[]
["26","300 mm Wide","m",85,0,{"$f":"D1709*E1709","v":0}]
[]
["27","300 mm 90 Degree bend","No",1,0,{"$f":"D1711*E1711","v":0}]
[]
["28","300 mm Tee piece","No",1,0,{"$f":"D1713*E1713","v":0}]
[]
["29","300 mm 4-Way piece","No",1,0,{"$f":"D1715*E1715","v":0}]
[]
["30","300 mm Riser piece","No",1,0,{"$f":"D1717*E1717","v":0}]
[]
["","Extra on last to install horizontally (trapeze) or vertically (P1000 unistrut). Fixings at 1000mm. Installation is to include for all joiner splices, raw bolts and fixing cable basket to unistrut with bolt fasteners complete with spring washer, fixing bolts etc.",{"$nulls":3},""]
[]
["31","150 mm Wide","m",35,0,{"$f":"D1721*E1721","v":0}]
[]
["32","150 mm 90 Degree bend","No",1,0,{"$f":"D1723*E1723","v":0}]
[]
["33","150 mm Tee piece","No",1,0,{"$f":"D1725*E1725","v":0}]
[]
["34","150 mm 4-Way piece","No",1,0,{"$f":"D1727*E1727","v":0}]
[]
["35","150 mm Riser piece","No",1,0,{"$f":"D1729*E1729","v":0}]
[]
["36","300 mm Wide","m",85,0,{"$f":"D1731*E1731","v":0}]
[]
["37","300 mm 90 Degree bend","No",1,0,{"$f":"D1733*E1733","v":0}]
[]
["38","300 mm Tee piece","No",1,0,{"$f":"D1735*E1735","v":0}]
[]
["39","300 mm 4-Way piece","No",1,0,{"$f":"D1737*E1737","v":0}]
[]
["40","300 mm Riser piece","No",1,0,{"$f":"D1739*E1739","v":0}]
[]
["","SLEEVES",{"$nulls":3},""]
[]
["","Supply the following cable sleeves:",{"$nulls":3},""]
[]
["41","160mm hard PVC sleeves","m",25,0,{"$f":"D1745*E1745","v":0}]
[]
["42","110mm hard PVC sleeves","m",800,0,{"$f":"D1747*E1747","v":0}]
[]
["43","75mm hard PVC sleeves","m",15,0,{"$f":"D1749*E1749","v":0}]
[]
["44","50mm hard PVC sleeves","m",13,0,{"$f":"D1751*E1751","v":0}]
[]
["45","Slow radius bend for 160mm PVC sleeve","No",2,0,{"$f":"D1753*E1753","v":0}]
[]
["46","Slow radius bend for 110mm PVC sleeve","No",2,0,{"$f":"D1755*E1755","v":0}]
[]
["47","Slow radius bend for 75mm PVC sleeve","No",2,0,{"$f":"D1757*E1757","v":0}]
[]
["48","Slow radius bend for 50mm PVC sleeve","No",2,0,{"$f":"D1759*E1759","v":0}]
[]
["","Extra on last to install the following in trench (trenching measured elsewhere)",{"$nulls":3},""]
[]
["49","160mm hard PVC sleeves","m",25,0,{"$f":"D1763*E1763","v":0}]
[]
["50","110mm hard PVC sleeves","m",800,0,{"$f":"D1765*E1765","v":0}]
[]
["51","75mm hard PVC sleeves","m",15,0,{"$f":"D1767*E1767","v":0}]
[]
["52","50mm hard PVC sleeves","m",13,0,{"$f":"D1769*E1769","v":0}]
[]
["53","Slow radius bend for 160mm PVC sleeve","No",2,0,{"$f":"D1771*E1771","v":0}]
[]
["54","Slow radius bend for 110mm PVC sleeve","No",2,0,{"$f":"D1773*E1773","v":0}]
[]
["55","Slow radius bend for 75mm PVC sleeve","No",2,0,{"$f":"D1775*E1775","v":0}]
[]
["56","Slow radius bend for 50mm PVC sleeve","No",2,0,{"$f":"D1777*E1777","v":0}]
[]
["","SECTION NO. 3",{"$nulls":3},""]
[]
["","BILL NO. 7",{"$nulls":3},""]
[]
["","ELECTRICAL INSTALLATION (PROVISIONAL)",{"$nulls":3},""]
[]
["","LIGHTING AND SMALL POWER - SECOND FLOOR (SECTION A)",{"$nulls":3},""]
[]
["1","Provisional allowance for remedial works to the existing lighting and small power to ensure compliance on the system","Item",1,{"v":50000,"d":"R50,000.00"},{"$f":"D1787*E1787","v":{"v":50000,"d":"R50,000.00"}}]
[]
["2","Profit & Attendance on the item above","Item",1,0,{"$f":"D1789*E1789","v":0}]
[]
["","SECTION NO. 3",{"$nulls":3},""]
[]
["","BILL NO. 8",{"$nulls":3},""]
[]
["","ELECTRICAL INSTALLATION (PROVISIONAL)",{"$nulls":3},""]
[]
["","LUMINAIRES"]
[]
["1","Provisional allowance to replace existing light fittings that have been damaged due to water ingression - new fittings to match existing.","Item",1,{"v":50000,"d":"R50,000.00"},{"$f":"D1799*E1799","v":{"v":50000,"d":"R50,000.00"}}]
[]
["2","Profit & Attendance on the item above","Item",1,0,{"$f":"D1801*E1801","v":0}]
[]
["","SECTION NO. 3",{"$nulls":3},""]
[]
["","BILL NO. 9",{"$nulls":3},""]
[]
["","ELECTRICAL INSTALLATION (PROVISIONAL)",{"$nulls":3},""]
[]
["","EXISTING INSTALLATION",{"$nulls":3},""]
[]
["","Disconnect, make safe and remove the following;",{"$nulls":3},""]
[]
["1","Surface recessed light fitting","No",50,0,{"$f":"D1813*E1813","v":0}]
[]
["2","Bulkhead light fitting","No",65,0,{"$f":"D1815*E1815","v":0}]
[]
["3","Downlighters","No",25,0,{"$f":"D1817*E1817","v":0}]
[]
["4","Allow to remove surface mounted conduit","m",350,0,{"$f":"D1819*E1819","v":0}]
[]
["5","Allow to remove wiring","m",800,0,{"$f":"D1821*E1821","v":0}]
[]
["6","Allow to remove surface mounted switch socket outlets","No",10,0,{"$f":"D1823*E1823","v":0}]
[]
["7","Allow to remove recess mounted switch socket outlets","No",10,0,{"$f":"D1825*E1825","v":0}]
[]
["8","Allow to remove surface mounted light switches ","No",10,0,{"$f":"D1827*E1827","v":0}]
[]
["9","Allow to remove 25 mm conduit ","m",954,0,{"$f":"D1829*E1829","v":0}]
[]
["10","Allow to remove 20 mm conduit ","m",921,0,{"$f":"D1831*E1831","v":0}]
[]
["11","Allow to dispose existing equipment and material removed from site and disposed off-site","Item",1,0,{"$f":"D1833*E1833","v":0}]
[]
["12","Allow to remove all existing distribution boards","No",2,0,{"$f":"D1835*E1835","v":0}]
[]
["","SECTION NO. 3",{"$nulls":3},""]
[]
["","BILL NO. 10",{"$nulls":3},""]
[]
["","ELECTRICAL INSTALLATION (PROVISIONAL)",{"$nulls":3},""]
[]
["","BULK ELECTRICAL INSTALLATION",{"$nulls":3},""]
[]
["1","Budgetary allowance for specialist to undertake assessment on existing transformers and carry out servicing of the unit","Item",1,{"v":200000,"d":"R200,000.00"},{"$f":"D1845*E1845","v":{"v":200000,"d":"R200,000.00"}}]
[]
["2","Profit & Attendance on the item above","Item",1,0,{"$f":"D1847*E1847","v":0}]
[]
["3","Budgetary allowance for specialist to undertake assessment on existing generator and carry out servicing of the unit","Item",1,{"v":100000,"d":"R100,000.00"},{"$f":"D1849*E1849","v":{"v":100000,"d":"R100,000.00"}}]
[]
["4","Profit & Attendance on the item above","Item",1,0,{"$f":"D1851*E1851","v":0}]
[]
[null,"ELECTRICAL  INSTALLATION SUMMARY"]
[]
["1","Preliminaries and General (Provisional)",{"$nulls":3},{"$f":"SUM(F1435:F1455)","v":0}]
[]
["2","General Items (Provisional)",{"$nulls":3},{"$f":"SUM(F1465:F1493)","v":0}]
[]
["3","Site Reticulation (Provisional)",{"$nulls":3},{"$f":"SUM(F1503:F1519)","v":0}]
[]
["4","Distribution Boards (Provisional)",{"$nulls":3},{"$f":"SUM(F1531:F1557)","v":{"v":290000,"d":"R290,000.00"}}]
[]
["5","L.V Cabling (Provisional)",{"$nulls":3},{"$f":"SUM(F1569:F1639)","v":0}]
[]
["6","Wire-ways (Provisional)",{"$nulls":3},{"$f":"SUM(F1653:F1777)","v":0}]
[]
["7","Lighting and Small Power - Second Floor, Section A (Provisional)",{"$nulls":3},{"$f":"SUM(F1787:F1789)","v":{"v":50000,"d":"R50,000.00"}}]
[]
["8","Luminaries (Provisional)",{"$nulls":3},{"$f":"SUM(F1799:F1801)","v":{"v":50000,"d":"R50,000.00"}}]
[]
["9","Existing Installation (Provisional)",{"$nulls":3},{"$f":"SUM(F1813:F1835)","v":0}]
[]
["10","Bulk Electrical Installation (Provisional)",{"$nulls":3},{"$f":"SUM(F1845:F1851)","v":{"v":300000,"d":"R300,000.00"}}]
[]
["","SECTION NO. 4",{"$nulls":3},""]
[]
["","BILL NO. 1",{"$nulls":3},""]
[]
["","MECHANICAL INSTALLATON",{"$nulls":3},""]
[]
["","PRELIMINARY AND GENERAL ITEMS",{"$nulls":3},""]
[]
["","Allow for all the preliminary and general items required to provide the health & safety, fire installation for this project, but excluding items priced elsewhere in these Bills (These amounts will be paid pro rata to the rest of the amounts claimed by the contractor, relative to the tender amount).","",null,null,""]
[]
["","CONTRACTUAL REQUIREMENTS",{"$nulls":3},""]
[]
["1","Tenderers to allow for compliance with all the conditions of the contract.","Item",1,0,{"$f":"D1887*E1887","v":0}]
[]
["","JOINT TRADES",{"$nulls":3},""]
[]
["2","Tenderers to allow for all costs which may be required in order to co-ordinate and liaise with the other Trade Contractors, especially with the electrical contractor.","Item",1,0,{"$f":"D1891*E1891","v":0}]
[]
["","SUPERVISOR",{"$nulls":3},""]
[]
["3","Tenderer to allow for a full time working supervisor during the duration of the contract, who shall have the delegated authority to receive instructions and make decisions regarding the contract.","Item",1,0,{"$f":"D1895*E1895","v":0}]
[]
["","SITE ESTABLISHMENT",{"$nulls":3},""]
[]
["4","Tenderers to allow for all costs which may be required in order to place the necessary facilities on site for safe storage and orderly management purposes for the duration of the contract.","Item",1,0,{"$f":"D1899*E1899","v":0}]
[]
["","REMOVAL OF WASTE",{"$nulls":3},""]
[]
["5","Tenderer to allow for all costs associated with cleaning the site of all rubbish and waste caused by this contract.","Item",1,0,{"$f":"D1903*E1903","v":0}]
[]
["","HEALTH AND SAFETY",{"$nulls":3},""]
[]
["6","Allow for Health, Safety and Environmental in accordance with the Specification.","Item",1,0,{"$f":"D1907*E1907","v":0}]
[]
["","GENERAL ITEMS",{"$nulls":3},""]
[]
["","Any additional, items that the Tenderer deems necessary for the successful and total completion of the portion of the work required for this Bill. Specify:",{"$nulls":3},""]
[]
["7","Construction guarantee","Item",1,0,{"$f":"D1913*E1913","v":0}]
[]
["8","Protection against damage, hoisting and rigging","Item",1,0,{"$f":"D1915*E1915","v":0}]
[]
["9","Allow for labelling of equipment as specified.","Item",1,0,{"$f":"D1917*E1917","v":0}]
[]
["10","Allow for Commissioning and testing the complete installation as specified. Provision of test certification, logbooks and any other COC's where necessary forming a part of contract","Item",1,0,{"$f":"D1919*E1919","v":0}]
[]
["11","Allow for three sets of maintenance and operation manuals, including wiring diagrams, schematics, spare part lists as specified.","Item",1,0,{"$f":"D1921*E1921","v":0}]
[]
["12","Allow for twelve months free maintenance and guarantee for fire protection and fire suppression systems","Item",1,0,{"$f":"D1923*E1923","v":0}]
[]
["13","Allow for instructing the clients staff in the correct operation of the installation.","Item",1,0,{"$f":"D1925*E1925","v":0}]
[]
["14","Allow for preparation of \"as installed drawings\" and printing (3 sets).","No",1,0,{"$f":"D1927*E1927","v":0}]
[]
["15","Allow for preparation of Workshop drawings and printing (3 sets).","No",1,0,{"$f":"D1929*E1929","v":0}]
[]
["","SECTION NO. 4",{"$nulls":3},""]
[]
["","BILL NO. 2",{"$nulls":3},""]
[]
["","MECHANICAL INSTALLATON",{"$nulls":3},""]
[]
[""," MECHANICAL SERVICES",{"$nulls":3},""]
[]
["","The Model Preambles for Trades 2009 as published by the Association of South African Quantity Surveyors shall be deemed to be incorporated in these bills of quantities and no claims arising from brevity of description of items fully described in the said Model Preambles will be entertained","",null,null,""]
[]
["","The bill of quantities must be read in conjunction with the rest of the contract documents and drawings.","",null,null,""]
[]
["","A price must be submitted for every item. Items for which no prices are given will be regarded as being covered by other items in the Bills.","",null,null,""]
[]
["","The quantities measured in the Bill of Quantities for work and material must not be viewed as a limitation of the amount of work to be done and material provided by the contractor in the complete execution of the work.","",null,null,""]
[]
["","The general descriptions and data of the work given in the specification, drawings or schedules are not fully repeated in the Bill of Quantities and reference to the other documents for complete information is therefore important and necessary.","",null,null,""]
[]
["","No variations or omissions may be done to the Bill of Quantities by the tenderer, any such variations or omissions will not be recognized and the text of the Bill of Quantities will be strictly adhered to.","",null,null,""]
[]
["","Material must be ordered as determined on site and not from the drawings or Bill of Quantities. The Employer will not accept any responsibility for surplus or inadequately ordered material.  Payments will only be made for the actual re-measured quantities as installed.","",null,null,""]
[]
["","All fittings and accessories shall always include the connections thereto.","",null,null,""]
[]
["","Unless otherwise stated in the Bill of Quantities, all prices shall allow for the following items:","",null,null,""]
[]
["","Supply, deliver to site, and store new unused and undamaged and of the best quality available and complete with small materials necessary for the installation, testing, commissioning and rendering in proper working order.","",null,null,""]
[]
["","Installation, fixing in position, running or laying, as applicable, in a thorough and workmanlike manner.","",null,null,""]
[]
["","Making of all connections necessary.","",null,null,""]
[]
["","Tenderer to ensure the proper working and serviceability of all items installed.","",null,null,""]
[]
["","Complete labelling with engraved labels to indicate all functions and instructions which otherwise would be unclear to ordinary users.","",null,null,""]
[]
["","Corrosion protection to be applied where necessary.","",null,null,""]
[]
["","All profits, overheads, supervision, transport and skilled and unskilled labour.","",null,null,""]
[]
["","Approval and inspection by the Engineer","",null,null,""]
[]
["","Compliance with all relevant regulations, by-laws and codes of practice. ","",null,null,""]
[]
["","Compliance with the Specification. The installation is to comply with the project specifications if listed in this document.","",null,null,""]
[]
["","Compliance with all requirements set out in this section and any other section of the Specification and Bills of Quantity.","",null,null,""]
[]
["","Tenderer to ensure Main Contractor allows for all the preliminary and general items required to provide the health & safety, mechanical and electrical installation for this project, but excluding items priced elsewhere in this Bill. This ensures there are no duplication in items priced and/or payments issued. Onus is on the tenderer to ensure the Main Contractors pricing issued incorporates P & G costs of each specialist sub-contractor appointed under them.","",null,null,""]
[]
["","The appointed tenderer must ensure that a defects liability period of 12 months - post practical completion, is allowed for on all Mechanical installations priced under the bill of quantities.","",null,null,""]
[]
["","MECHANICAL HVAC SCOPE OF WORK",{"$nulls":3},""]
[]
["1","Provisional sum for completion of chiller works including but not limited to: Finalization of maintenance & repairs Commissioning & testing","Item",1,{"v":600000,"d":"R600,000.00"},{"$f":"D1985*E1985","v":{"v":600000,"d":"R600,000.00"}}]
[]
[2,"Profit and Attendance on the item above"]
[]
["","WET SERVICES SCOPE OF WORK",{"$nulls":3},""]
[]
["","Design, supply, install, test and commission complete borehole pump systems, including submersible pumps, motors, rising mains, electrical cabling, control panels, level controls, protection devices, valves, fittings, headworks, discharge pipework, supports and all associated accessories, complete and fully operational in accordance with SANS standards, manufacturer’s requirements and the Engineer’s specifications.","",null,null,""]
[]
[3,"Borehole pumps","No",2,0,{"$f":"D1993*E1993","v":0}]
[null,"Water volume to be pumped: - 10 m3/hr"]
[null,"Pump Static Head: - 80m"]
[]
[4,"Pump motors","No",2,0,{"$f":"D1997*E1997","v":0}]
[null,"4 kW, 3 Phase "]
[]
[5,"Electrics & controls","No",2,0,{"$f":"D2000*E2000","v":0}]
[]
[6,"Telemetry","Item",1,0,{"$f":"D2002*E2002","v":0}]
[]
["","Domestic Booster pumps",{"$nulls":3},""]
[]
[7,"Supply, install, test and commission a domestic booster pump system comprising duty and standby centrifugal multistage pumps mounted on a common skid base, each pump fitted with a dedicated variable speed drive (VSD), complete with a fully integrated electrical control panel incorporating automatic duty/standby changeover, dry-run protection, pressure control, fault monitoring and alarm indication.  The system shall further include a hydropneumatic pressure vessel (hydrosphere), suction and discharge manifolds, isolation valves, non-return valves, strainers, flexible anti-vibration connections, pressure gauges, transducers, all interconnecting pipework, supports, electrical power and control cabling, testing, commissioning and handover documentation, complete in accordance with SANS 10252-1 and the Engineer’s specifications.","Item",1,0,{"$f":"D2006*E2006","v":0}]
[]
["","Domestic Water Booster pumps","",null,null,""]
[]
["","Water volume to be pumped: - 5,4 l /s","",null,null,""]
[]
["","Pump Static Head: - 60m","",null,null,""]
[]
[null,"15 kW motor - 3 phase"]
[]
[8,"Submission for approval to the Engineer equipment selected in accordance with the specification.","SUM",1,0,{"$f":"D2016*E2016","v":0}]
[]
[9,"Preparation and submission for approval of construction drawings as specified","SUM",1,0,{"$f":"D2018*E2018","v":0}]
[]
[10,"Checking and setting of pump and motor alignment on site after installation as well as pump balancing.","No",1,0,{"$f":"D2020*E2020","v":0}]
[]
[11,"Inspection, testing and commissioning of pump set as specified.","No",1,0,{"$f":"D2022*E2022","v":0}]
[]
[null,"MECHANICAL INSTALLATION SUMMARY"]
[]
["1","Preliminaries and General (Provisional)",{"$nulls":3},{"$f":"SUM(F1887:F1929)","v":0}]
[]
["2","Mechanical Services (Provisional)",{"$nulls":3},{"$f":"SUM(F1985:F2022)","v":{"v":600000,"d":"R600,000.00"}}]
[]
["","SECTION NO. 5",{"$nulls":3},""]
[]
["","BILL NO. 1",{"$nulls":3},""]
[]
["","OCCUPATIONAL HEALTH AND SAFETY (PROVISIONAL) ",{"$nulls":3},""]
[]
["","The Tenderer is referred to the relevant clauses in the separate document General Preambles for Trades (2017 Edition).  Tenderers are to note that the sum included in the amount column for this section of the Bill of Quantities should be the total of all priced items in the Occupational Health and Safety Bill of Quantities as attached hereafter.  ","",null,null,""]
[]
["1","Occupational Health and Safety amount transferred from the Occupational Health and Safety Bill of Quantities attached hereafter, annexed to the tender document (Refer to Annexure 8, Pages 1 to 3)","SUM",1,0,{"$f":"D2038*E2038","v":0}]
[]
[null,"FINAL SUMMARY"]
[]
["1","PRELIMINARIES",{"$nulls":3},{"$f":"SUM(F22:F237)","v":0}]
[]
["2","EXTERNAL WORKS (PROVISIONAL)",{"$nulls":3},{"$f":"SUM(F1409:F1415)","v":{"v":660000,"d":"R660,000.00"}}]
[]
["3","ELECTRICAL INSTALLATION (PROVISIONAL)",{"$nulls":3},{"$f":"SUM(F1855:F1873)","v":{"v":690000,"d":"R690,000.00"}}]
[]
["4","MECHANICAL INSTALLATION (PROVISIONAL)",{"$nulls":3},{"$f":"SUM(F2026:F2028)","v":{"v":600000,"d":"R600,000.00"}}]
[]
["5","OCCUPATIONAL HEALTH AND SAFETY (PROVISIONAL)",{"$nulls":3},{"$f":"SUM(F2038)","v":0}]
[]
["","SUB-TOTAL ",{"$nulls":3},{"$f":"SUM(F2042:F2050)","v":{"v":1950000,"d":"R1,950,000.00"}}]
[]
["","ADD: VALUE ADDED TAX @ 15%","TAX",{"v":0.15,"d":"15%"},null,{"$f":"SUM(F2052)*D2054","v":{"v":292500,"d":"R292,500.00"}}]
[]
[null,"FINAL AMOUNT CARRIED TO CONTRACT SUM",{"$nulls":3},{"$f":"SUM(F2052:F2054)","v":{"v":2242500,"d":"R2,242,500.00"}}]
[]
[]
[]
[]
[null,"NAME OF BIDDER: "]
[]
[null,"CENTRAL SUPPLIER DATABASE NUMBER:"]